Cogmind - Beta 16 @@@ ROGUE MODE // 2025.11.15 @ 22:52:25 Player: szymekc Result: Destroyed by Executioner with Helical Railgun Performance ------------- Evolutions (9) 4500 Regions Visited (28) 5600 Robots Destroyed (460) 2300 Value Destroyed (26368) 26368 Prototype IDs (203) 4060 Alien Tech Used (5) 1000 Bonus (22130) 22130 TOTAL SCORE: 65958 Bonus ------- Triggered High Security 500 High Alert Combat Kills 10918 Follower Combat Kills 120 Forged Quantum Companion 2000 Registered with UFD 300 Met Optimus in HQ 500 Met Imprinter 300 Met Zhirov 300 Met Warlord at Base 500 MAIN.C Attacked Warlord 500 Warlord Defense Kills 1524 Scanned by Researcher 500 Met Optimus at Protoforge 1000 Executed Drillbomb Mission 10000 Friendly Fire -6832 Cogmind --------- Core Integrity 0/1600 Matter 300/300 Energy 100/100 System Corruption 13% Temperature Cool (0) Movement Flying (35) Location -1/Access Parts ------- > --- POWER (2) -------- (None) > --- PROPULSION (8) --- Experimental Biomechanical Wings > --- UTILITY (13) ----- Concept Melee Reflex Suite Improved Armor Integrity Analyzer Graphene Brace > --- WEAPON (3) ------- Superquantum Companion > --- INVENTORY (5) ---- Light Quantum Reactor Concept Chromion Battery (800) Concept Antimissile System Perforator Peak State ------------ > --- POWER ------------ Concept Zero-point Core Concept Zero-point Core > --- PROPULSION ------- Electron Diverter Electron Diverter Impulse Thruster Array Impulse Thruster Array Experimental Biomechanical Wings Experimental Biomechanical Wings > --- UTILITY ---------- Concept Antigrav Storage Unit Advanced Melee Analysis Suite Concept Melee Reflex Suite Concept Weapon Articulator Experimental Core Analyzer Experimental Core Analyzer Improved Armor Integrity Analyzer Femtoactuators Experimental Cloaking Device Concept Cloak Mesh Concept Network Penetrator Swarm Drone Bay > --- WEAPON ----------- Superquantum Companion Sigix Broadsword > --- INVENTORY -------- Cooled Field Propulsion Drive Electron Diverter Experimental Surge Thruster Experimental Surge Thruster Experimental Heat Sink Concept Chromion Battery Centrium Medium Armor Plating Graphene Brace Advanced Shield Generator Concept Antimissile System Transdimensional Reconstructor Transdimensional Reconstructor Perforator [Rating: 278] Favorites ----------- Power Subdweller Power Source Engine Subdweller Power Source Power Core Light Neutrino Core Reactor Improved Quantum Reactor Propulsion Light Treads Treads Light Treads Hover Unit Concept Gyrokinetic System Flight Unit Cooled Field Propulsion Drive Utility Advanced Melee Analysis Suite Device Microactuators Storage Medium Storage Unit Processor Advanced Melee Analysis Suite Hackware Improved Hacking Suite Protection Enhanced Scrap Shield Weapon Companion Sword Energy Gun Subdweller Laser Energy Cannon Subdweller Beam Cannon Ballistic Gun Subdweller Machine Gun Ballistic Cannon Light Cannon Launcher Scatter Rocket Array Special Weapon CPS Tube Impact Weapon Hammer Slashing Weapon Companion Sword Piercing Weapon Makeshift Spear Special Melee Weapon Advanced Datajack Build | -11 -10 -10 -10 -8 -8 -6 -6 -6 -6 -6 -6 -5 -5 -5 -5 -5 -4 -4 -4 -4 -4 -3 -3 -3 -2 -2 -2 -1 ------- Run | Yrd Mat Min Sub Rec Scr Fac Was Fac Low Low Zio Pro Fac Upp Upp War Pro Fac Upp Upp Zhi Pro Res Tes Res Qua Frg Acc Slots Evolved 18 | . . . . . . 8 . . . . . . 2 . . . . 2 . . . . 2 . 2 . . 2 Power 1 | . . . . . . . . . . . . . . . . . . . . . . . . . 1 . . . Propulsion 5 | . . . . . . 3 . . . . . . 1 . . . . 1 . . . . . . . . . . Utility 11 | . . . . . . 5 . . . . . . 1 . . . . 1 . . . . 2 . 1 . . 1 Weapon 1 | . . . . . . . . . . . . . . . . . . . . . . . . . . . . 1 Parts Attached 253 | 7 2 2 17 2 1 29 . 12 1 . . 2 12 . . 13 . 16 . 1 3 2 4 17 9 4 79 18 Power 21 | 1 . . 2 . . 2 . . . . . . 1 . . 2 . 1 . . . 1 . 1 3 . 6 1 Engine 6 | 1 . . 2 . . 1 . . . . . . . . . . . . . . . . . . 2 . . . Core 7 | . . . . . . 1 . . . . . . . . . 1 . . . . . . . . . . 4 1 Reactor 8 | . . . . . . . . . . . . . 1 . . 1 . 1 . . . 1 . 1 1 . 2 . Propulsion 65 | 2 . . 4 1 . 5 . . . . . . 2 . . 1 . 7 . . . 1 3 1 2 2 28 6 Treads 7 | 2 . . 4 1 . . . . . . . . . . . . . . . . . . . . . . . . Leg . | . . . . . . . . . . . . . . . . . . . . . . . . . . . . . Wheel . | . . . . . . . . . . . . . . . . . . . . . . . . . . . . . Hover 7 | . . . . . . . . . . . . . . . . . . . . . . . . . . . 7 . Flight 51 | . . . . . . 5 . . . . . . 2 . . 1 . 7 . . . 1 3 1 2 2 21 6 Utility 135 | 2 1 1 2 . . 18 . 12 1 . . 1 9 . . 7 . 7 . 1 3 . 1 10 4 2 43 10 Device 63 | 2 . . . . . 6 . 5 1 . . 1 3 . . 2 . 2 . 1 2 . 1 7 3 1 19 7 Storage 11 | . 1 . 1 . . 2 . . . . . . 1 . . 1 . . . . . . . . 1 1 2 1 Processor 22 | . . . . . . 5 . 2 . . . . 1 . . 2 . 3 . . . . . . . . 9 . Hackware 14 | . . . . . . 3 . 2 . . . . 1 . . . . 2 . . 1 . . 2 . . 3 . Protection 25 | . . 1 1 . . 2 . 3 . . . . 3 . . 2 . . . . . . . 1 . . 10 2 Artifact . | . . . . . . . . . . . . . . . . . . . . . . . . . . . . . Weapon 32 | 2 1 1 9 1 1 4 . . . . . 1 . . . 3 . 1 . . . . . 5 . . 2 1 Energy Gun 5 | 1 . . 1 . . . . . . . . . . . . 2 . . . . . . . 1 . . . . Energy Cannon 6 | . . . 4 . . 2 . . . . . . . . . . . . . . . . . . . . . . Ballistic Gun 7 | 1 1 . 2 1 . . . . . . . . . . . 1 . . . . . . . 1 . . . . Ballistic Cannon 2 | . . . 1 . . . . . . . . . . . . . . . . . . . . 1 . . . . Launcher 2 | . . . . . . . . . . . . 1 . . . . . . . . . . . . . . 1 . Special Weapon 2 | . . . . . . 1 . . . . . . . . . . . . . . . . . 1 . . . . Impact Weapon 1 | . . 1 . . . . . . . . . . . . . . . . . . . . . . . . . . Slashing Weapon 5 | . . . . . 1 1 . . . . . . . . . . . . . . . . . 1 . . 1 1 Piercing Weapon 1 | . . . 1 . . . . . . . . . . . . . . . . . . . . . . . . . Special Melee Weapon 1 | . . . . . . . . . . . . . . . . . . 1 . . . . . . . . . . Unidentified Prototypes 53 | . . . . . 1 4 . . . . . . 5 1 . 10 . 2 . . 2 . 1 9 2 1 13 2 Parts Lost 50 | . . . 1 . . . . 1 1 . . . 3 . . . . . . . . . 1 1 . . 14 28 Power 1 | . . . . . . . . . . . . . . . . . . . . . . . . . . . . 1 Propulsion 12 | . . . 1 . . . . . . . . . . . . . . . . . . . 1 . . . 1 9 Utility 36 | . . . . . . . . 1 1 . . . 3 . . . . . . . . . . 1 . . 13 17 Weapon 1 | . . . . . . . . . . . . . . . . . . . . . . . . . . . . 1 Highest Loss Streak 13 | . . . 1 . . . . 1 1 . . . 1 . . . . . . . . . 1 1 . . 3 13 To Critical Strikes . | . . . . . . . . . . . . . . . . . . . . . . . . . . . . . Average Backups 11 | 1 7 15 15 16 13 6 6 6 7 7 8 7 7 7 8 9 10 9 10 10 9 10 9 9 8 9 13 14 Power . | . 1 1 . 1 . . . . . . . . . 1 1 . 1 . . . . . . . 1 1 . . Propulsion 2 | . . 4 2 2 2 . 1 1 1 1 1 1 2 2 2 2 3 2 3 3 3 2 1 . . . 3 3 Utility 4 | . 2 4 5 7 6 3 2 2 3 3 4 4 1 1 1 2 2 2 4 5 4 4 3 4 4 4 4 7 Weapon 3 | . 2 6 6 6 4 1 2 2 2 2 2 1 1 1 2 3 4 3 2 2 2 2 2 2 2 2 2 . Tool/Special . | . . . . . . . . . . . . . . . . . . . . . . . . . . . . . Unused Backups 59 | . 2 . 6 . 8 8 . 1 . . . . 2 . . 3 . 2 . . . . 1 6 1 . 15 4 Power 6 | . . . . . 1 1 . . . . . . . . . . . 1 . . . . . 2 . . . 1 Propulsion 11 | . . . . . 1 . . . . . . . 1 . . . . . . . . . . 1 1 . 7 . Utility 29 | . . . 2 . 3 4 . 1 . . . . 1 . . 3 . 1 . . . . 1 2 . . 8 3 Weapon 12 | . 2 . 4 . 3 2 . . . . . . . . . . . . . . . . . 1 . . . . Tool/Special 1 | . . . . . . 1 . . . . . . . . . . . . . . . . . . . . . . Average Slot Usage (%) 85 | . 100 100 99 100 86 62 72 73 77 77 77 77 73 70 71 71 71 76 85 85 84 85 81 86 86 85 90 75 Engine 5 | . 14 14 14 14 9 4 . . . . . . . . . . . . . . . . . . 2 4 . . Core 1 | . . . . . . . 5 4 5 5 5 5 5 4 4 1 . . . . . . . . . . 5 6 Treads 12 | . 28 28 27 28 28 . . . . . . . . . . . . . . . . . . . . . . . Flight 10 | . . . . . . 10 11 11 11 11 11 11 13 13 14 14 14 18 30 30 30 30 27 31 29 27 29 21 Device 10 | . 19 11 10 4 . 7 5 9 16 16 16 16 14 7 8 7 9 11 10 10 14 15 21 15 12 16 21 15 Storage 8 | . 8 14 14 14 14 4 5 5 5 5 5 5 5 4 4 4 4 4 5 5 5 5 4 4 4 4 4 2 Processor 9 | . . . . . . 13 16 17 22 22 22 22 20 23 23 23 23 20 15 15 11 10 9 9 8 8 15 17 Hackware 2 | . . . . . . 9 11 10 5 5 5 5 5 4 4 2 . 1 . . 3 5 4 8 12 8 1 2 Protection 6 | . . 2 3 9 14 3 11 7 5 5 5 5 5 4 4 6 9 8 10 9 5 5 4 5 7 7 4 1 Energy Gun 1 | . 1 . 4 9 . . . . . . . . . . . . . . . . . . . . . . . . Energy Cannon 2 | . . . 12 . . . . . . . . . . . . . . . 4 5 5 5 . . . . . . Ballistic Gun 5 | . 26 27 4 17 14 . . . . . . . . . . . . . . . . . . . . . . . Slashing Weapon 3 | . . . . . 5 5 5 5 5 5 5 5 5 4 4 4 4 4 5 5 5 5 4 4 3 4 3 4 Peak Build Rating 278 | 9 9 8 20 20 23 97 95 105 106 105 105 114 122 136 128 138 141 173 154 154 154 149 157 175 182 180 269 278 Average Rating 91 | 6 8 8 14 19 20 82 95 97 104 104 105 104 115 127 128 129 134 165 153 153 149 148 155 162 174 172 234 227 On Entrance 107 | . 9 8 8 19 20 23 95 95 105 105 105 105 101 113 124 128 133 140 152 154 152 149 149 156 171 170 175 242 Avg Prop Armor Cover (%) 8 | . . . . . . . . . . . . . 5 . . . . . . . . . . . . . 10 . Naked Turns . | . . . . . . . . . . . . . . . . . . . . . . . . . . . . . Heaviest Build 69 | 10 30 32 65 57 57 42 29 30 30 30 29 37 46 45 45 41 41 52 60 61 62 62 62 56 68 63 69 68 Greatest Support 126 | 40 40 40 40 40 40 39 29 33 30 30 30 30 39 45 45 46 45 62 62 62 62 74 62 59 67 63 126 68 Greatest Overweight (x) 3 | . . . 1 1 1 1 . . . . . 1 3 . . . . . . . . . . . 1 . 1 1 Average Overweight (x) . | . . . . 1 1 . . . . . . . . . . . . . . . . . . . . . . . Largest Inventory Capacity 25 | 5 15 15 20 20 20 20 10 10 10 10 10 10 10 10 10 10 10 10 10 10 10 10 10 10 10 15 25 25 Average Capacity 15 | 5 11 15 18 20 20 11 10 10 10 10 10 10 10 10 10 10 10 10 10 10 10 10 10 10 10 11 21 21 Most Carried 25 | 3 15 15 20 20 20 19 9 10 10 10 10 10 10 10 10 10 10 10 10 10 10 10 10 10 10 15 25 25 Average Carried 14 | 1 7 15 18 19 18 10 9 9 9 9 10 9 9 8 9 9 9 9 9 9 9 10 9 9 9 11 19 16 Final Capacity 25 | 5 15 15 20 20 20 10 10 10 10 10 10 10 10 10 10 10 10 10 10 10 10 10 10 10 10 15 25 5 Final Carried 20 | 3 15 15 20 20 17 9 9 10 9 10 10 10 10 9 10 10 10 10 10 10 10 10 8 10 10 15 15 5 Class Distribution -------------------- 44% | Mutant 17% | Sprinter 10% | Hacker-Sprinter 10% | Scavenger-Mutant 5% | Hacker-Scout 5% | Scavenger-Sprinter Dominant Class ---------------- Mutant | -10/Materials Mutant | -10/Mines Mutant | -10/Subcaves Scavenger-Mutant | -8/Recycling Mutant | -8/Scraptown Hacker-Scout | -6/Factory Hacker-Scout | -6/Waste Hacker-Scout | -6/Factory Mutant | -6/Lower Caves Mutant | -6/Lower Caves Mutant | -6/Zion Mutant | -5/Proximity Caves Sprinter | -5/Factory Sprinter | -5/Upper Caves Sprinter | -5/Upper Caves Commander-Sprinter | -5/Warlord Sprinter | -4/Proximity Caves Sprinter | -4/Factory Sprinter | -4/Upper Caves Sprinter | -4/Upper Caves Sprinter | -4/Zhirov Sprinter | -3/Proximity Caves Sprinter | -3/Research Hacker-Sprinter | -3/Testing Hacker-Sprinter | -2/Research Hacker-Sprinter | -2/Quarantine Scavenger-Sprinter | -2/Protoforge Hacker-Sprinter | -1/Access Resources | -11 -10 -10 -10 -8 -8 -6 -6 -6 -6 -6 -6 -5 -5 -5 -5 -5 -4 -4 -4 -4 -4 -3 -3 -3 -2 -2 -2 -1 ----------- Run | Yrd Mat Min Sub Rec Scr Fac Was Fac Low Low Zio Pro Fac Upp Upp War Pro Fac Upp Upp Zhi Pro Res Tes Res Qua Frg Acc Matter Collected 7688 | 300 328 114 541 60 . 370 . 348 45 20 . 150 372 160 74 290 58 459 17 . 138 30 86 235 564 161 1938 830 Remotely . | . . . . . . . . . . . . . . . . . . . . . . . . . . . . . Salvage Created 28925 | 147 272 196 743 156 . 828 . 779 74 42 . 413 1135 321 404 853 496 2100 13 . 1087 78 1310 1502 1216 2148 8692 3920 Parts 1362 | 8 17 6 63 11 . 30 . 44 3 4 . 26 59 23 17 26 20 86 . . 50 12 51 69 51 107 393 186 Haulers Intercepted 23 | . 2 . . . . 3 . 1 . . . . 1 . . . . 4 . . . . 4 4 1 1 . 2 Recyclers Shooed 2 | . 1 . . . . . . . . . . . 1 . . . . . . . . . . . . . . . Parts Field Recycled . | . . . . . . . . . . . . . . . . . . . . . . . . . . . . . Retrieved Matter . | . . . . . . . . . . . . . . . . . . . . . . . . . . . . . Parts Self-Destructed 119 | . . . 22 . . . . . 28 4 . 17 . 11 7 . 18 . . . 1 11 . . . . . . Prevented . | . . . . . . . . . . . . . . . . . . . . . . . . . . . . . Parts Restored 2 | . . . . . . . . . . . . . . . . . . . . . . . . . . . 2 . Faulty 2 | . . . . . . . . . . . . . . . . . . . . . . . . . . . 2 . Kills | -11 -10 -10 -10 -8 -8 -6 -6 -6 -6 -6 -6 -5 -5 -5 -5 -5 -4 -4 -4 -4 -4 -3 -3 -3 -2 -2 -2 -1 ------- Run | Yrd Mat Min Sub Rec Scr Fac Was Fac Low Low Zio Pro Fac Upp Upp War Pro Fac Upp Upp Zhi Pro Res Tes Res Qua Frg Acc Combat Hostiles Destroyed 343 | . 3 4 22 3 . 4 . 7 1 1 . 9 19 12 5 14 9 20 . . . 2 11 8 12 18 102 57 Melee 249 | . . . . . . 4 . 7 1 1 . 7 13 3 5 14 9 19 . . . 2 9 5 6 14 84 46 Guns 13 | . 3 4 3 3 . . . . . . . . . . . . . . . . . . . . . . . . Cannons 47 | . . . 17 . . . . . . . . 1 . . . . . . . . . . 2 1 6 . 10 10 AOE 16 | . . . . . . . . . . . . 1 6 9 . . . . . . . . . . . . . . Classes Destroyed 31 | 2 3 1 1 1 . 3 . . . . . 2 4 . 2 1 . . . . . . . 1 . . 8 2 Worker 6 | . . . . . . . . . . . . . 2 . . . . 1 . . . . . 1 . . 1 1 Builder 4 | . . 1 . . . . . . . . . . 1 . . . . 1 . . . . . . . . . 1 Tunneler 3 | 3 . . . . . . . . . . . . . . . . . . . . . . . . . . . . Hauler 23 | . 2 . . . . 3 . 1 . . . . 1 . . . . 4 . . . . 4 4 1 1 . 2 Recycler 12 | 1 1 1 . . . 2 . 1 . . . . 1 . . . . 1 . . . . 1 2 1 . . . Carrier 3 | . . . . . . . . . . . . . . . . . . . . . . . . . . . 1 2 Operator 8 | . . . . . . 1 . . . . . . . . . . . 1 . . . . . . 1 2 3 . Drone 7 | . . . . . . . . . . . . 2 . . . . . 1 . . . 1 . . . . 3 . Watcher 33 | . . . . . . 1 . 5 . . . . 3 . . . . 3 . . . . 4 3 3 1 5 5 Swarmer 48 | . 2 3 7 . . . . . . . . . . 9 . 1 4 . . . . . 4 3 . . 4 11 Cutter 21 | . . . . . . . . . . . . . 1 . . . . . . . . . . . 4 . . 16 Saboteur 5 | . . . . . . . . . . . . . . . . . . . . . . . . . . . 1 4 Grunt 65 | . 1 1 . . . . . . . . . 4 . 2 3 6 5 4 . . . . 2 . 5 2 15 15 Brawler 7 | . . . . . . . . . . . . . . . . 2 . . . . . . . . 1 . 3 1 Duelist 6 | . . . . . . . . . . . . 1 . 1 . . . . . . . . . . 1 . 2 1 Protector 5 | . . . . . . . . . . . . . 1 . . 3 . . . . . . . . . . 1 . Researcher 15 | . . . . . . . . . . . . . . . . . . . . . . . . 2 . 8 5 . Sentry 42 | . . . . 3 . 3 . 4 1 . . . 5 . 1 . . 6 . . . . 1 1 . 3 13 1 Demolisher 1 | . . . . . . . . . . . . . . . . . . . . . . . . . . . . 1 Specialist 6 | . . . . . . . . . . . . . 4 . . . . . . . . . . . . . 2 . Hunter 32 | . . . . . . . . . . . . . . . . 2 . 4 . . . . . 1 . 4 19 2 Programmer 48 | . . . . . . 1 . 3 . 1 . 2 8 . . . . 5 . . . 1 4 2 1 9 10 1 Q-Series 2 | . . . . . . . . . . . . . . . . . . . . . . . . . . . . 2 Enhanced Grunt 9 | . . . . . . . . . . . . . . . . . . . . . 9 . . . . . . . Hotshot 3 | . . . . . . . . . . . . . . . . . . . . . . . . . . . 3 . Decapitator 5 | . . . . . . . . . . . . . . . . . . . . . . . . . . . 5 . Immortal 4 | . . . . . . . . . . . . . . . . . . . . . . . . . . . 4 . Overlord 1 | . . . . . . . . . . . . . . . . . . . . . . . . . . . 1 . Investigator 1 | . . . . . . . . . . . . . . . . . . . . . . . . . . . . 1 Striker 8 | . . . . . . . . . . . . . . . . . . . . . . . . . . . 8 . Executioner 5 | . . . . . . . . . . . . . . . . . . . . . . . . . . . 3 2 Alpha 7 3 | . . . . . . . . . . . . . . . . . . . . . . . . . . . 3 . V-Series 2 | . . . . . . . . . . . . . . . . . . . . . . . . . . . 2 . Protovariant Y 1 | . . . . . . . . . . . . . . . . . . . . . . . . 1 . . . . Subdweller 15 | . . . 15 . . . . . . . . . . . . . . . . . . . . . . . . . Decomposer 1 | . . . . . . . . . . . . . . . . . . . 1 . . . . . . . . . Tinkerer 1 | . . . . . . . . . . . . . . . . . . . . . . . . . . . 1 . Savage 1 | . . . . . . . . . . . . . . . 1 . . . . . . . . . . . . . Mutant 1 | . . . . . . . . . . . . . . . 1 . . . . . . . . . . . . . Best Kill Streak 19 | 3 2 4 4 1 . 3 . 4 1 1 . 5 10 9 3 5 4 8 . . . 2 7 8 5 9 18 19 Combat Bots Only 18 | . 2 3 4 1 . 1 . 1 1 1 . 5 6 9 3 5 4 3 . . . 2 7 3 5 4 17 18 Max Kills in Single Turn 9 | 1 1 2 2 1 . 1 . 1 1 1 . 1 7 9 1 1 2 1 1 . 1 1 1 1 2 2 3 3 Gunslinging 1 | . . 1 . . . . . . . . . . . . . . . . . . . . . . . . . . Exploded 9 | . . . . . . . . . . . . 1 6 9 . . . . . . . . . . . . . . Melee 3 | . . . . . . 1 . 1 1 1 . 1 1 1 1 1 2 1 . . . 1 1 1 1 1 2 3 Uniques/NPCs Destroyed . | . . . . . . . . . . . . . . . . . . . . . . . . . . . . . Combat | -11 -10 -10 -10 -8 -8 -6 -6 -6 -6 -6 -6 -5 -5 -5 -5 -5 -4 -4 -4 -4 -4 -3 -3 -3 -2 -2 -2 -1 -------- Run | Yrd Mat Min Sub Rec Scr Fac Was Fac Low Low Zio Pro Fac Upp Upp War Pro Fac Upp Upp Zhi Pro Res Tes Res Qua Frg Acc Hostile Shots Fired 1663 | . 15 18 88 4 . 72 . 95 10 2 . 13 137 11 14 33 61 98 6 . 18 2 59 41 43 63 329 431 Missed 797 | . 4 5 28 . . 42 . 52 6 . . 8 56 2 6 12 28 64 5 . 10 2 37 23 22 37 147 201 Deflected 31 | . . . . . . . . . . . . . . . . . . 1 . . . . . . . 3 9 18 Hits 866 | . 11 13 60 4 . 30 . 43 4 2 . 5 81 9 8 21 33 34 1 . 8 . 22 18 21 26 182 230 Melee 40 | . . . . . . . . . . . . . . 3 . . . . . . . . . . 8 . 13 16 Projectile 826 | . 11 13 60 4 . 30 . 43 4 2 . 5 81 6 8 21 33 34 1 . 8 . 22 18 13 26 169 214 AOE 15 | . . . . . . . . . . . . . . . . . . . . . . . . . 1 . 4 10 Critical Strikes 49 | . . . 1 1 . . . . 1 . . . 6 1 . . 2 4 . . . . 2 1 3 1 15 11 Actively Blocked 20 | . . . . . . . . . . . . . 2 . . . . 3 . . . . . . . . 8 7 Part Disruptions 4 | . . . . . . . . . . . . . 2 . . 1 . . . . . . . . . . 1 . Actively Blocked 1 | . . . . . . . . . . . . . . . . 1 . . . . . . . . . . . . Damage Taken 18761 | . 107 180 913 61 . 374 . 389 90 32 . 113 1567 218 198 583 618 620 38 . 362 . 506 366 688 526 5383 4829 Core 3599 | . 31 13 79 . . 32 . 40 8 . . 16 77 10 34 95 85 93 . . 22 . 78 54 63 146 1188 1435 Absorbed by Shields 1110 | . . . . . . . . . . . . . . . . 13 . . . . . . . . . . . 1097 Redirected to Shielding 1170 | . . . . . . 79 . 140 19 10 . 13 249 . . 16 15 61 34 . . . . 21 48 . 359 106 Ignored by Resistances 627 | . . . . . . . . . . . . . . . . . 7 12 . . . . 38 17 . 35 518 . Regen/Repaired (Parts) 1047 | . . . . . . . . . . . 561 . 118 . . . . . . . . . . . 103 . 75 190 Core Remaining (%) 69 | 100 . . . . 50 . . . . . . 88 . . . . 69 . . . . 90 . 89 . . 3 . Volleys Fired 175 | 10 18 14 67 4 . 4 . . . . . 3 3 2 . 5 1 . . 6 1 . . 3 13 1 9 11 Largest 2 | 2 2 2 2 2 . 1 . . . . . 1 1 1 . 1 1 . . 1 1 . . 1 1 1 1 1 Hottest 160 | 60 40 40 160 90 . 85 . . . . . 113 50 113 . 113 113 . . 113 113 . . 113 113 113 113 100 Shots Fired 269 | 20 36 28 117 6 . 4 . . . . . 3 2 2 . 5 1 . 1 6 1 . . 3 13 1 9 11 Gun 123 | 20 36 28 32 6 . . . . . . . . . . . . . . . . . . . . 1 . . . Cannon 138 | . . . 85 . . 4 . . . . . 2 . 1 . 3 1 . 1 6 1 . . 1 12 1 9 11 Launcher 4 | . . . . . . . . . . . . 1 2 1 . . . . . . . . . . . . . . Special 4 | . . . . . . . . . . . . . . . . 2 . . . . . . . 2 . . . . Kinetic 139 | 10 36 28 31 5 . . . . . . . . . . . . . . . . . . . . 10 . 8 11 Thermal 122 | 10 . . 86 1 . 4 . . . . . 2 . 1 . 3 1 . 1 6 1 . . 1 3 1 1 . Explosive 4 | . . . . . . . . . . . . 1 2 1 . . . . . . . . . . . . . . Electromagnetic . | . . . . . . . . . . . . . . . . . . . . . . . . . . . . . Robot Hit Streak 22 | 6 5 7 22 2 . . . . . . . 3 5 . . 2 . . . . 3 . . 5 6 . 16 4 Robot Miss Streak 11 | 1 2 3 9 1 . . . . . . . . 9 . . . . . . . . . . . 8 . 3 11 Penetration Max 2 | . . . . . . . . . . . . . . . . . . . . . . . . . 2 . 2 1 Secondary Targets 1 | . . 1 . . . . . . . . . . . . . . . . . . . . . . . . . . Max Gunslinging Chain 1 | . . 1 . . . . . . . . . . . . . . . . . . . . . . . . . . Autonomous 28 | . . . . . . . . . . . . . . . . . . 1 . . . . 2 1 . 2 13 9 Shots Hit Robots 1018 | 12 23 18 75 4 . 23 . 34 4 4 . 14 56 10 16 48 25 49 1 . 29 2 41 35 22 61 313 99 Core Hits 637 | 5 9 8 23 3 . 9 . 17 1 1 . 12 92 21 8 25 12 27 . . 13 2 17 17 41 26 167 81 Critical Kills 24 | . . . 2 . . . . . . . . . . . . . . . . . . . . . 6 . 9 7 Critical Parts Destroyed 20 | . . . . . . . . . . . . . . . . . . . . . . . . . 5 . 8 7 Critical Strikes 71 | . . . 2 . . 2 . . . . . . 6 . 2 . . 2 . . . . . . 14 . 29 14 Meltdown 2 | . . . 2 . . . . . . . . . . . . . . . . . . . . . . . . . Destroy 45 | . . . . . . . . . . . . . . . . . . . . . . . . . 14 . 17 14 Melee Attacks 1224 | . . 5 38 . . 45 . 47 6 4 2 26 65 13 19 55 35 77 2 18 29 2 51 51 28 83 370 153 Impact 35 | . . 5 30 . . . . . . . . . . . . . . . . . . . . . . . . . Slashing 1181 | . . . . . . 45 . 47 6 4 2 26 65 13 19 55 35 77 2 18 29 2 51 51 28 83 370 153 Piercing 8 | . . . 8 . . . . . . . . . . . . . . . . . . . . . . . . . Sneak Attacks 145 | . . 1 . . . 8 . 7 . . . 2 2 4 6 7 . 12 1 . 18 1 8 10 3 16 27 12 Combat Hostiles 25 | . . . . . . 2 . 2 . . . . . . 1 . . 4 . . . 1 . . . 5 9 1 Follow-up Attacks 27 | . . . . . . . . . . . . . 1 1 1 2 1 . . . 1 . 1 . 1 4 11 3 Martial Strikes 87 | . . . . . . . . . . . . . . . . . . . . . . . . . . . 36 51 Damage Inflicted 79983 | 138 295 270 1748 88 . 1403 . 1931 214 240 . 821 5012 960 927 2434 1206 4452 124 . 3235 178 3666 3226 1378 6682 29713 9642 Guns 1287 | 138 293 218 527 86 . . . . . . . . . . . . . . . . . . . . 25 . . . Cannons 4141 | . . . 1221 . . . . . . . . 41 . . . . . 74 . . 37 . 197 90 187 164 1279 851 Explosions 2878 | . . . . . . . . . . . . 21 2338 457 . . . . . . . . . . . . . 62 Melee 71669 | . . 48 . . . 1403 . 1931 214 240 . 759 2674 503 927 2434 1206 4378 124 . 3198 178 3469 3136 1166 6518 28434 8729 Ramming 8 | . 2 4 . 2 . . . . . . . . . . . . . . . . . . . . . . . . Kinetic 1395 | 84 293 218 263 66 . . . . . . . . . . . . . . . . . . . . 187 . 191 93 Thermal 1724 | 54 . . 1485 20 . . . . . . . 41 . . . . . . . . 37 . . . 25 . . 62 Explosive 2816 | . . . . . . . . . . . . 21 2338 457 . . . . . . . . . . . . . . Electromagnetic . | . . . . . . . . . . . . . . . . . . . . . . . . . . . . . Impact 48 | . . 48 . . . . . . . . . . . . . . . . . . . . . . . . . . Slashing 71621 | . . . . . . 1403 . 1931 214 240 . 759 2674 503 927 2434 1206 4378 124 . 3198 178 3469 3136 1166 6518 28434 8729 Piercing . | . . . . . . . . . . . . . . . . . . . . . . . . . . . . . Phasic 2371 | . . . . . . . . . . . . . . . . . . 74 . . . . 197 90 . 164 1088 758 Highest Corruption 25 | . . . . . . 1 8 8 . 1 1 1 6 3 3 3 1 4 4 4 4 4 1 1 1 4 25 13 Average Corruption 5 | . . . . . . 1 4 6 . 1 1 1 4 3 3 1 1 3 4 4 4 4 1 1 1 2 12 6 Corruption Purged 14 | . . . . . . . . 8 . . . . 6 . . . . . . . . . . . . . . . Corruption Blocked . | . . . . . . . . . . . . . . . . . . . . . . . . . . . . . Effects 185 | . . . . . . . 1 18 . . . . 8 3 5 3 2 8 4 6 5 3 . 2 . 7 92 18 Message Errors 46 | . . . . . . . 1 9 . . . . 1 2 . 1 . 3 1 1 2 1 . 1 . 2 18 3 Matter Fused 40 | . . . . . . . . 3 . . . . 2 1 2 . 1 1 1 3 1 1 . . . 1 21 2 Heat Flow Errors 21 | . . . . . . . . 1 . . . . 1 . 1 2 . . . 1 1 . . . . 1 8 5 Energy Discharges 25 | . . . . . . . . . . . . . 1 . 1 . . 3 1 1 . . . . . 1 15 2 Parts Rejected 4 | . . . . . . . . . . . . . . . . . . . . . . . . . . 1 3 . Parts Fused 2 | . . . . . . . . 1 . . . . . . . . . . . . . . . . . . 1 . Data Loss (minor) 23 | . . . . . . . . 3 . . . . 2 . 1 . 1 1 . . 1 . . 1 . . 10 3 Data Loss (major) 4 | . . . . . . . . . . . . . . . . . . . . . . . . . . 1 2 1 Misfires 1 | . . . . . . . . . . . . . . . . . . . 1 . . . . . . . . . Alerts 3 | . . . . . . . . 1 . . . . . . . . . . . . . 1 . . . . 1 . Misdirections 15 | . . . . . . . . . . . . . . . . . . . . . . . . . . . 13 2 Weapon Failures 1 | . . . . . . . . . . . . . 1 . . . . . . . . . . . . . . . Overload Shots . | . . . . . . . . . . . . . . . . . . . . . . . . . . . . . Overflow Damage 8096 | . . 18 21 . . 210 . 79 30 20 . 47 172 53 . 106 126 485 118 . 717 . 495 560 176 1103 2887 673 Projectiles 98 | . . . 21 . . . . . . . . . . . . . . 24 . . . . . 20 . . 31 2 Explosions 5 | . . . . . . . . . . . . . . 5 . . . . . . . . . . . . . . Melee 7993 | . . 18 . . . 210 . 79 30 20 . 47 172 48 . 106 126 461 118 . 717 . 495 540 176 1103 2856 671 Knockbacks 12 | . . . 1 . . . . . . . . . . . . . . . . . . . . . 7 . . 4 Impact . | . . . . . . . . . . . . . . . . . . . . . . . . . . . . . Kinetic 11 | . . . 1 . . . . . . . . . . . . . . . . . . . . . 7 . . 3 Secondary 1 | . . . . . . . . . . . . . . . . . . . . . . . . . . . . 1 Self-Inflicted Damage 22 | . . . . . . . . . . . . . 22 . . . . . . . . . . . . . . . Shots 1 | . . . . . . . . . . . . . 1 . . . . . . . . . . . . . . . Rammed 4 | . 2 1 . 1 . . . . . . . . . . . . . . . . . . . . . . . . Targets Rammed 4 | . 2 1 . 1 . . . . . . . . . . . . . . . . . . . . . . . . Kicked . | . . . . . . . . . . . . . . . . . . . . . . . . . . . . . Crushed . | . . . . . . . . . . . . . . . . . . . . . . . . . . . . . Highest Temperature 307 | . . 8 307 30 . 72 . 182 . . . 71 195 60 150 231 62 21 90 97 167 11 6 30 110 31 223 235 Average Temperature 58 | . . 4 85 14 . 24 . 95 . . . 34 86 31 73 96 21 10 46 31 76 11 6 14 38 31 69 75 Received Heat Transfer 1916 | . 36 81 90 36 . 57 . 102 6 . . 9 207 45 30 102 174 66 9 . 9 . 33 36 45 27 351 365 Siege Activations . | . . . . . . . . . . . . . . . . . . . . . . . . . . . . . Martial Activations . | . . . . . . . . . . . . . . . . . . . . . . . . . . . . . Shielding Activations . | . . . . . . . . . . . . . . . . . . . . . . . . . . . . . Robots Disrupted 18 | . . . . . . . . 1 . . . 1 1 1 . 5 . 1 . . . . 1 . . 2 3 2 Combat Hostiles 17 | . . . . . . . . 1 . . . 1 1 1 . 5 . 1 . . . . . . . 2 3 2 Robots Corrupted 1 | . . 1 . . . . . . . . . . . . . . . . . . . . . . . . . . Combat Hostiles . | . . . . . . . . . . . . . . . . . . . . . . . . . . . . . Parts Fried 3 | . . 3 . . . . . . . . . . . . . . . . . . . . . . . . . . Impact Corruptions 1 | . . 1 . . . . . . . . . . . . . . . . . . . . . . . . . . Robots Melted 2 | . . . 2 . . . . . . . . . . . . . . . . . . . . . . . . . Combat Hostiles 2 | . . . 2 . . . . . . . . . . . . . . . . . . . . . . . . . Parts Melted 14 | . . . 11 . . . . . . . . . . . . 2 . . . . . . . . 1 . . . Heat Transferred 2499 | 125 . . 2188 25 . . . . . . . 37 . . . . . . . . 37 . . . 37 . . 50 Parts Sabotaged 5 | . . . . . . . . . . . . . . . . . . . . . . . . . . . . 5 Parts Stolen . | . . . . . . . . . . . . . . . . . . . . . . . . . . . . . Parts Stripped 149 | . . . . . . . . . . . . . . . . . . 18 . . . . 11 17 . 30 42 31 Power Chain Reactions . | . . . . . . . . . . . . . . . . . . . . . . . . . . . . . Alert | -11 -10 -10 -10 -8 -8 -6 -6 -6 -6 -6 -6 -5 -5 -5 -5 -5 -4 -4 -4 -4 -4 -3 -3 -3 -2 -2 -2 -1 ------- Run | Yrd Mat Min Sub Rec Scr Fac Was Fac Low Low Zio Pro Fac Upp Upp War Pro Fac Upp Upp Zhi Pro Res Tes Res Qua Frg Acc Maximum Alert Level 5 | . . . . . . 1 . . . . . . 2 . . . . 3 . . . . 1 2 2 3 5 5 Low Security (%) 54 | 100 100 100 . 100 . 93 100 100 . . . . 62 . . . . 29 . . . . 82 12 . . 3 . Level 1 10 | . . . . . . 6 . . . . . . 30 . . . . 18 . . . . 17 77 43 14 3 . Level 2 9 | . . . . . . . . . . . . . 7 . . . . 42 . . . . . 10 56 33 11 . Level 3 6 | . . . . . . . . . . . . . . . . . . 9 . . . . . . . 52 17 . Level 4 2 | . . . . . . . . . . . . . . . . . . . . . . . . . . . 15 . Level 5 10 | . . . . . . . . . . . . . . . . . . . . . . . . . . . 47 17 High Security 5 | . . . . . . . . . . . . . . . . . . . . . . . . . . . . 82 Max Security . | . . . . . . . . . . . . . . . . . . . . . . . . . . . . . Peak Influence 4077 | 10 34 70 . 46 . 320 112 71 . . . . 437 . . . . 885 . . . . 304 417 488 1020 2789 4077 Initial 1672 | . . . . 7 . . 112 71 . . . . 178 . . . . 113 . . . . . 171 229 273 567 1672 Average 598 | 2 2 26 . 9 . 64 107 33 . . . . 231 . . . . 371 . . . . 75 282 410 729 1598 2719 Influence Increases 13895 | 20 102 125 225 258 . 765 . 361 20 30 . 170 813 270 90 396 265 1158 . . 10 35 447 496 408 1016 3590 2825 Destroy 0b10 Robot/C 6780 | . 60 80 140 60 . 100 . 140 20 20 . 140 360 240 80 300 180 380 . . . 20 220 200 240 520 2080 1200 Destroy 0b10 Robot/NC 535 | 20 15 10 . . . 35 . 35 . . . 10 45 . . 15 . 60 . . 10 5 45 55 30 20 80 45 Destroy Leader 1236 | . 14 20 10 . . 56 . 82 . 10 . 20 108 30 10 . 10 134 . . . 10 56 30 38 54 340 204 Allied During Kill 55 | . . . . . . 2 . . . . . . . . . 51 . . . . . . . . . . . 2 Trap Triggered on 0b10 50 | . . . . . . 50 . . . . . . . . . . . . . . . . . . . . . . Successful Hack 594 | . 13 . . 47 . 100 . 67 . . . . 71 . . . . 43 . . . . . 36 22 125 40 30 Select Force Hacks 150 | . . . . 150 . . . . . . . . . . . . . . . . . . . . . . . . Disable Machine 390 | . . . . . . 15 . . . . . . . . . . . . . . . . . 105 . 60 195 15 Anti-Garrison Action 150 | . . . . . . . . . . . . . . . . . . . . . . . . . . . 150 . Destroy Structure 490 | . . . . 1 . 17 . 7 . . . . 64 . . . . 46 . . . . 6 10 78 27 75 159 Advance Influence 150 | . . . . . . . . . . . . . 150 . . . . . . . . . . . . . . . Partial Spotted 675 | . . . . . . 75 . 30 . . . . 15 . . . . 150 . . . . 45 45 . 165 120 30 Lose Combat Pursuer 2640 | . . 15 75 . . 315 . . . . . . . . . 30 75 345 . . . . 75 15 . 45 510 1140 Influence Decreases 9818 | 20 102 125 210 273 . 445 218 463 20 30 . 125 421 361 227 444 245 460 426 187 276 35 143 391 330 494 1812 1535 Entered New Map 3695 | . . . . 8 . . 208 31 . . . . 17 163 67 209 161 68 326 87 266 . . 133 180 214 442 1115 Time Decay 4817 | 20 102 125 210 265 . 405 10 406 20 30 . 125 374 198 160 165 84 392 100 100 10 35 133 238 150 270 630 60 Lost Part 480 | . . . . . . . . 10 . . . . 30 . . . . . . . . . 10 10 . . 140 280 Lost Ally 210 | . . . . . . 40 . . . . . . . . . 70 . . . . . . . 10 . 10 . 80 Purge Threat 616 | . . . . . . . . 16 . . . . . . . . . . . . . . . . . . 600 . Squads Dispatched 104 | . 3 . . . . 8 . 12 . . . . 6 . . . . 6 . . . . 6 3 5 4 23 28 Investigation 31 | . 1 . . . . 3 . 7 . . . . 3 . . . . 3 . . . . 1 1 1 . 11 . Extermination 25 | . . . . . . 3 . 3 . . . . 2 . . . . 3 . . . . 2 2 1 4 4 1 Reinforcement 20 | . 2 . . . . . . 2 . . . . 1 . . . . . . . . . 3 . 3 . 5 4 Assault 27 | . . . . . . 2 . . . . . . . . . . . . . . . . . . . . 2 23 Garrison 1 | . . . . . . . . . . . . . . . . . . . . . . . . . . . 1 . Intercept . | . . . . . . . . . . . . . . . . . . . . . . . . . . . . . Searches Triggered . | . . . . . . . . . . . . . . . . . . . . . . . . . . . . . Unchained Authorized 2 | . . . . . . . . . . . . . . . . . . . . . . . 1 . 1 . . . Construction Impeded . | . . . . . . . . . . . . . . . . . . . . . . . . . . . . . Haulers Reinforced 2 | . . . . . . . . . . . . . . . . . . . . . . . 2 . . . . . Active Scanning Responses . | . . . . . . . . . . . . . . . . . . . . . . . . . . . . . Cargo Convoy Interrupts 3 | . . . . . . 1 . . . . . . 1 . . . . 1 . . . . . . . . . . Stealth | -11 -10 -10 -10 -8 -8 -6 -6 -6 -6 -6 -6 -5 -5 -5 -5 -5 -4 -4 -4 -4 -4 -3 -3 -3 -2 -2 -2 -1 --------- Run | Yrd Mat Min Sub Rec Scr Fac Was Fac Low Low Zio Pro Fac Upp Upp War Pro Fac Upp Upp Zhi Pro Res Tes Res Qua Frg Acc Distress Signals 23 | . 2 . . . . 1 . . . . . . . . . 1 . 4 . . . . . 1 1 . 7 6 Communications Jammed 20 | . . . . . . . . . . . . . . . . . . . . . . . 7 4 7 2 . . Distress Signals 20 | . . . . . . . . . . . . . . . . . . . . . . . 7 4 7 2 . . Times Spotted 778 | . 5 4 25 1 . 28 6 14 8 1 . 9 31 8 4 78 19 53 1 . 3 1 20 16 21 32 174 216 Peak Tracking Total 32 | . 4 2 6 1 . 6 6 2 5 1 . 4 12 9 3 15 11 19 1 . 3 1 8 3 8 4 9 32 Tactical Retreats 76 | . . 1 3 . . 11 . . . . . . . . . 2 2 7 . . . . 1 1 . 3 21 24 ECM-based Alert Blocks 29 | . . . . . . . . . . . . . . . . . . . . . . . . . . . . 29 Traps | -11 -10 -10 -10 -8 -8 -6 -6 -6 -6 -6 -6 -5 -5 -5 -5 -5 -4 -4 -4 -4 -4 -3 -3 -3 -2 -2 -2 -1 ------- Run | Yrd Mat Min Sub Rec Scr Fac Was Fac Low Low Zio Pro Fac Upp Upp War Pro Fac Upp Upp Zhi Pro Res Tes Res Qua Frg Acc Traps Triggered 31 | . . . 1 . . 2 . 2 . . . . 5 . . . . 2 . . . . . 1 . 1 14 3 Indirectly . | . . . . . . . . . . . . . . . . . . . . . . . . . . . . . Trap Hack Attempts . | . . . . . . . . . . . . . . . . . . . . . . . . . . . . . Triggered . | . . . . . . . . . . . . . . . . . . . . . . . . . . . . . Disarmed . | . . . . . . . . . . . . . . . . . . . . . . . . . . . . . Reprogrammed 3 | . . . . . . 3 . . . . . . . . . . . . . . . . . . . . . . Reused 5 | . . . . . . 5 . . . . . . . . . . . . . . . . . . . . . . Traps Extracted . | . . . . . . . . . . . . . . . . . . . . . . . . . . . . . Installed 2 | . . . . . . 2 . . . . . . . . . . . . . . . . . . . . . . Triggered 5 | . . . . . . 5 . . . . . . . . . . . . . . . . . . . . . . Most Traps Carried 3 | . . . . . 3 3 1 1 1 1 1 1 1 1 1 1 . . . . . . . . . . . . Machines | -11 -10 -10 -10 -8 -8 -6 -6 -6 -6 -6 -6 -5 -5 -5 -5 -5 -4 -4 -4 -4 -4 -3 -3 -3 -2 -2 -2 -1 ---------- Run | Yrd Mat Min Sub Rec Scr Fac Was Fac Low Low Zio Pro Fac Upp Upp War Pro Fac Upp Upp Zhi Pro Res Tes Res Qua Frg Acc Machines Disabled 31 | . . . 1 . . 1 . . . . . . . . 1 1 . . . . . . . 7 . 4 15 1 Max in Single Turn 1 | . . . 1 . . 1 . . . . . . . . 1 1 . . . . . . . 1 . 1 1 1 Garrison Access 7 | . . . . . . 2 . 2 . . . . . . . . . . . . . . . 1 1 . 1 . Energy Cycler 1 | . . . . . . . . . . . . . . . . . . . . . . . . . . . . 1 Machines Repaired . | . . . . . . . . . . . . . . . . . . . . . . . . . . . . . Machines Dismantled . | . . . . . . . . . . . . . . . . . . . . . . . . . . . . . Machines Sabotaged . | . . . . . . . . . . . . . . . . . . . . . . . . . . . . . Overloaded Fab Kills . | . . . . . . . . . . . . . . . . . . . . . . . . . . . . . Hacking | -11 -10 -10 -10 -8 -8 -6 -6 -6 -6 -6 -6 -5 -5 -5 -5 -5 -4 -4 -4 -4 -4 -3 -3 -3 -2 -2 -2 -1 --------- Run | Yrd Mat Min Sub Rec Scr Fac Was Fac Low Low Zio Pro Fac Upp Upp War Pro Fac Upp Upp Zhi Pro Res Tes Res Qua Frg Acc Machines Accessed 154 | . 7 . 4 10 4 17 . 23 1 . . . 13 1 1 4 . 12 . 1 4 . 4 9 7 13 15 4 Terminals 80 | . 7 . . 5 . 12 . 15 . . . . 5 . . . . 6 . . . . 1 5 4 11 7 2 Fabricators 10 | . . . . . . 3 . 1 . . . . 1 . . . . . . . . . . 1 . . 4 . Repair Stations 6 | . . . . . . . . . . . . . 1 . . . . 1 . . . . . 1 1 . 2 . Recycling Units 19 | . . . . 5 . 1 . 4 . . . . 2 . . . . 3 . . . . 1 . 1 . 1 1 Scanalyzers 8 | . . . . . . . . 1 . . . . 2 . . . . 1 . . . . 1 1 . 1 . 1 Garrison Access 11 | . . . . . . 1 . 2 . . . . 2 . . . . 1 . . . . 1 1 1 1 1 . Total Hacks 437 | . 16 . 8 38 11 46 . 87 1 . . . 31 1 1 9 . 22 . 1 15 . 5 21 21 45 51 7 Successful 252 | . 9 . 8 23 11 17 . 56 1 . . . 20 1 1 9 . 6 . 1 15 . 2 6 13 25 24 4 Failed 184 | . 7 . . 15 . 29 . 30 . . . . 11 . . . . 16 . . . . 3 15 8 20 27 3 Catastrophic 21 | . . . . . . 3 . 3 . . . . 2 . . . . 6 . . . . 1 1 1 3 1 . Database Lockouts 1 | . . . . . . . . 1 . . . . . . . . . . . . . . . . . . . . Manual 157 | . 12 . . 27 . 16 . 38 . . . . 7 . . . . 8 . . . . 2 3 7 20 17 . Terminals 251 | . 16 . . 26 . 30 . 56 . . . . 12 . . . . 13 . . . . 1 11 15 39 27 5 Fabricators 35 | . . . . . . 13 . 4 . . . . 2 . . . . . . . . . . 4 . . 12 . Repair Stations 14 | . . . . . . . . . . . . . 3 . . . . 1 . . . . . 1 2 . 7 . Recycling Units 41 | . . . . 12 . 1 . 10 . . . . 6 . . . . 6 . . . . 1 . 2 . 2 1 Scanalyzers 26 | . . . . . . . . 14 . . . . 5 . . . . 1 . . . . 1 2 . 2 . 1 Garrison Access 23 | . . . . . . 2 . 3 . . . . 3 . . . . 1 . . . . 2 3 2 4 3 . Terminal Hacks 128 | . 3 . 8 7 11 6 . 20 1 . . . 8 1 1 9 . 3 . 1 15 . . 3 8 14 7 2 Record 25 | . . . 5 . 9 . . . . . . . . . . 8 . . . . 3 . . . . . . . Part Schematic 10 | . . . . 4 . . . 1 . . . . . . . . . . . . 4 . . 1 . . . . Robot Analysis 8 | . . . . 1 . 1 . 2 . . . . . . . . . . . . 4 . . . . . . . Prototype ID Bank 24 | . 1 . . . . 2 . 3 . . . . 3 . . . . 1 . . 4 . . . 1 6 2 1 Open Door 8 | . . . 1 . 1 . . . 1 . . . . 1 1 1 . . . 1 . . . . 1 . . . Branch Access Points 6 | . . . . . . 1 . 1 . . . . 1 . . . . 1 . . . . . . 1 . . 1 Terminal Index 6 | . 2 . . 1 . . . . . . . . 1 . . . . . . . . . . . 1 1 . . Fabricator Index 2 | . . . . . . . . 1 . . . . . . . . . . . . . . . . 1 . . . Repair Station Index 1 | . . . . . . . . 1 . . . . . . . . . . . . . . . . . . . . Recycling Unit Index 1 | . . . . 1 . . . . . . . . . . . . . . . . . . . . . . . . Scanalyzer Index 1 | . . . . . . . . 1 . . . . . . . . . . . . . . . . . . . . Garrison Index 1 | . . . . . . . . 1 . . . . . . . . . . . . . . . . . . . . Unreport Threat 6 | . . . . . . . . 2 . . . . . . . . . . . . . . . . . . 4 . Locate Traps 2 | . . . . . . . . 1 . . . . . . . . . . . . . . . . 1 . . . Reprogram Traps 1 | . . . . . . 1 . . . . . . . . . . . . . . . . . . . . . . Recall Extermination 1 | . . . . . . . . 1 . . . . . . . . . . . . . . . . . . . . Hauler Manifests 9 | . . . . . . . . 3 . . . . 1 . . . . . . . . . . 1 1 3 . . Registered Components 4 | . . . . . . 1 . 1 . . . . 1 . . . . 1 . . . . . . . . . . Registered Prototypes 2 | . . . . . . . . . . . . . 1 . . . . . . . . . . . . 1 . . Zone Layout 6 | . . . . . . . . 1 . . . . . . . . . . . . . . . 1 1 3 . . Proto ID Catalog 3 | . . . 1 . 1 . . . . . . . . . . . . . . . . . . . . . 1 . Release Object 1 | . . . 1 . . . . . . . . . . . . . . . . . . . . . . . . . Fabricator Hacks 16 | . . . . . . 4 . 2 . . . . 1 . . . . . . . . . . 1 . . 8 . Network Status 2 | . . . . . . 1 . . . . . . 1 . . . . . . . . . . . . . . . Load Schematic 8 | . . . . . . 2 . 1 . . . . . . . . . . . . . . . 1 . . 4 . Build 6 | . . . . . . 1 . 1 . . . . . . . . . . . . . . . . . . 4 . Repair Station Hacks 8 | . . . . . . . . . . . . . 2 . . . . . . . . . . . 2 . 4 . Scan Component 5 | . . . . . . . . . . . . . 1 . . . . . . . . . . . 1 . 3 . Repair 3 | . . . . . . . . . . . . . 1 . . . . . . . . . . . 1 . 1 . Recycling Unit Hacks 11 | . . . . 4 . . . 3 . . . . 2 . . . . . . . . . . . 1 . . 1 Retrieve Components 11 | . . . . 4 . . . 3 . . . . 2 . . . . . . . . . . . 1 . . 1 Scanalyzer 22 | . . . . . . . . 14 . . . . 3 . . . . 1 . . . . 1 . . 2 . 1 Insert Component 8 | . . . . . . . . 5 . . . . 2 . . . . . . . . . 1 . . . . . Analyze 9 | . . . . . . . . 9 . . . . . . . . . . . . . . . . . . . . Retrieve Study 5 | . . . . . . . . . . . . . 1 . . . . 1 . . . . . . . 2 . 1 Garrison Access Hacks 5 | . . . . . . 1 . 2 . . . . . . . . . . . . . . . 1 1 . . . Seal Access 5 | . . . . . . 1 . 2 . . . . . . . . . . . . . . . 1 1 . . . Unauthorized Hacks 62 | . 6 . . 12 . 6 . 15 . . . . 4 . . . . 2 . . . . 1 1 1 9 5 . Terminals 39 | . 6 . . 7 . 2 . 10 . . . . . . . . . . . . . . . 1 . 9 4 . Assimilate 2 | . . . . . . . . . . . . . . . . . . . . . . . . 1 . 1 . . Botnet 11 | . 2 . . 2 . 2 . 2 . . . . . . . . . . . . . . . . . 2 1 . Operators 1 | . . . . . . . . 1 . . . . . . . . . . . . . . . . . . . . Skim 25 | . 4 . . 5 . . . 7 . . . . . . . . . . . . . . . . . 6 3 . Fabricators 5 | . . . . . . 3 . 1 . . . . 1 . . . . . . . . . . . . . . . Prioritize 3 | . . . . . . 2 . 1 . . . . . . . . . . . . . . . . . . . . Liberate 1 | . . . . . . 1 . . . . . . . . . . . . . . . . . . . . . . Haulers 1 | . . . . . . . . . . . . . 1 . . . . . . . . . . . . . . . Repair Stations 1 | . . . . . . . . . . . . . 1 . . . . . . . . . . . . . . . Patch 1 | . . . . . . . . . . . . . 1 . . . . . . . . . . . . . . . Recycling Units 17 | . . . . 5 . 1 . 4 . . . . 2 . . . . 2 . . . . 1 . 1 . 1 . Tunnel 5 | . . . . 5 . . . . . . . . . . . . . . . . . . . . . . . . Fedlink 12 | . . . . . . 1 . 4 . . . . 2 . . . . 2 . . . . 1 . 1 . 1 . Scanalyzers . | . . . . . . . . . . . . . . . . . . . . . . . . . . . . . Garrison Access . | . . . . . . . . . . . . . . . . . . . . . . . . . . . . . Data Cores Recovered 7 | . . . . . . 1 . . . . . . . . . . . 1 . . . . . . 1 2 2 . Used 3 | . . . . . . . . . . . . . . . . . . . . . . . . . 1 2 . . Hacking Detections 112 | . 7 . . 6 . 16 . 18 . . . . 11 . . . . 9 . . . . 3 9 3 12 14 4 Full Trace Events 14 | . . . . . . 2 . 2 . . . . . . . . . 1 . . . . . 1 . . 8 . Feedback Events 2 | . . . . . . 1 . . . . . . . . . . . 1 . . . . . . . . . . Corruption 2 | . . . . . . 1 . . . . . . . . . . . 1 . . . . . . . . . . Feedback Blocked . | . . . . . . . . . . . . . . . . . . . . . . . . . . . . . Robot Schematics Acquired 10 | . . . . . . . . . . . 3 . . . . . . . . . . . . . . 5 2 . Robots Built . | . . . . . . . . . . . . . . . . . . . . . . . . . . . . . Authchips . | . . . . . . . . . . . . . . . . . . . . . . . . . . . . . Time . | . . . . . . . . . . . . . . . . . . . . . . . . . . . . . Total Robot Build Rating . | . . . . . . . . . . . . . . . . . . . . . . . . . . . . . Part Schematics Acquired 70 | . . . . 4 . . . 6 . . 16 . . . . . . . . . 4 . . 9 . 19 12 . Parts Built 8 | . . . . . . 2 . 2 . . . . . . . . . . . . . . . . . . 4 . Authchips . | . . . . . . . . . . . . . . . . . . . . . . . . . . . . . Time 326 | . . . . . . 18 . 36 . . . . . . . . . . . . . . . . . . 272 . Total Part Build Rating 44 | . . . . . . 6 . 6 . . . . . . . . . . . . . . . . . . 32 . Part Studies Acquired 5 | . . . . . . . . . . . . . 1 . . . . 1 . . . . . . . 2 . 1 Parts Repaired 3 | . . . . . . . . . . . . . 1 . . . . . . . . . . . 1 . 1 . Time 146 | . . . . . . . . . . . . . 38 . . . . . . . . . . . 40 . 68 . Parts Recycled . | . . . . . . . . . . . . . . . . . . . . . . . . . . . . . Recycled Matter . | . . . . . . . . . . . . . . . . . . . . . . . . . . . . . Retrieved Matter . | . . . . . . . . . . . . . . . . . . . . . . . . . . . . . Retrieved Components 28 | . . . . 17 . . . 2 . . . . 3 . . . . . . . . . . . 6 . . . Parts Scanalyzed 6 | . . . . . . . . 5 . . . . 1 . . . . . . . . . . . . . . . Part Schematics Acquired 5 | . . . . . . . . 5 . . . . . . . . . . . . . . . . . . . . Parts Damaged 1 | . . . . . . . . . . . . . 1 . . . . . . . . . . . . . . . Bothacking | -11 -10 -10 -10 -8 -8 -6 -6 -6 -6 -6 -6 -5 -5 -5 -5 -5 -4 -4 -4 -4 -4 -3 -3 -3 -2 -2 -2 -1 ------------ Run | Yrd Mat Min Sub Rec Scr Fac Was Fac Low Low Zio Pro Fac Upp Upp War Pro Fac Upp Upp Zhi Pro Res Tes Res Qua Frg Acc Used RIF Installer . | . . . . . . . . . . . . . . . . . . . . . . . . . . . . . Robots Hacked . | . . . . . . . . . . . . . . . . . . . . . . . . . . . . . Non-combat . | . . . . . . . . . . . . . . . . . . . . . . . . . . . . . Combat . | . . . . . . . . . . . . . . . . . . . . . . . . . . . . . Robot Hacks Applied . | . . . . . . . . . . . . . . . . . . . . . . . . . . . . . Relay Couplers Released 1 | . . . . . . . . . . . . . . . . . . . . . . . . . . . 1 . Machine Destruction 1 | . . . . . . . . . . . . . . . . . . . . . . . . . . . 1 . Fabnet Peak Effective % . | . . . . . . . . . . . . . . . . . . . . . . . . . . . . . Robots Rewired 5 | . . . . . . . . . . . . . . . . 5 . . . . . . . . . . . . Allies Hacked 1 | . . . . . . . . . . . . . . . . . . . . . . . . . . 1 . . Hacks Repelled . | . . . . . . . . . . . . . . . . . . . . . . . . . . . . . Allies | -11 -10 -10 -10 -8 -8 -6 -6 -6 -6 -6 -6 -5 -5 -5 -5 -5 -4 -4 -4 -4 -4 -3 -3 -3 -2 -2 -2 -1 -------- Run | Yrd Mat Min Sub Rec Scr Fac Was Fac Low Low Zio Pro Fac Upp Upp War Pro Fac Upp Upp Zhi Pro Res Tes Res Qua Frg Acc Total Allies 11 | . . . . . . 3 1 . . . . . . . . 5 . . . . . . . 1 . 1 . . Largest Group 5 | . . . . . . 3 1 . . . . . . . . 5 . . . . . . . 1 . 1 . . Highest-Rated Group 267 | . . . . . . 87 31 . . . . . . . . 267 . . . . . . . 26 . 45 . . Highest-Rated Ally 64 | . . . . . . 29 31 . . . . . . . . 64 . . . . . . . 26 . 45 . . Total Orders 3 | . . . . . . . . . . . . . . . . 3 . . . . . . . . . . . . STAY 1 | . . . . . . . . . . . . . . . . 1 . . . . . . . . . . . . FOLLOW 1 | . . . . . . . . . . . . . . . . 1 . . . . . . . . . . . . AID 1 | . . . . . . . . . . . . . . . . 1 . . . . . . . . . . . . Ally Attacks 29 | . . . . . . 10 . . . . . . . . . 10 . . . . . . . . . . . 9 Total Damage 824 | . . . . . . 113 . . . . . . . . . 496 . . . . . . . . . . . 215 Kills 6 | . . . . . . 1 . . . . . . . . . 5 . . . . . . . . . . . . Allies Corrupted . | . . . . . . . . . . . . . . . . . . . . . . . . . . . . . Allies Melted . | . . . . . . . . . . . . . . . . . . . . . . . . . . . . . Intel | -11 -10 -10 -10 -8 -8 -6 -6 -6 -6 -6 -6 -5 -5 -5 -5 -5 -4 -4 -4 -4 -4 -3 -3 -3 -2 -2 -2 -1 ------- Run | Yrd Mat Min Sub Rec Scr Fac Was Fac Low Low Zio Pro Fac Upp Upp War Pro Fac Upp Upp Zhi Pro Res Tes Res Qua Frg Acc Active Infowar (turns) 14404 | 93 1012 345 2467 421 . 1142 33 1056 372 243 345 403 701 371 277 157 291 634 206 208 22 . 292 312 289 586 1412 714 Optics 359 | . . . . . . 359 . . . . . . . . . . . . . . . . . . . . . . Sensors 6270 | . . . . . . 1052 33 955 372 243 345 403 701 371 277 157 291 634 206 208 22 . . . . . . . IFF 32 | . . . . . . . . . . . . . . . . . . . . . . . . . . . . 32 Terrain 494 | 88 394 . . . . 12 . . . . . . . . . . . . . . . . . . . . . . Seismic 4323 | 36 1005 345 2467 421 . 49 . . . . . . . . . . . . . . . . . . . . . . T.N.C. 1793 | . . . . . . 1011 33 749 . . . . . . . . . . . . . . . . . . . . Cloaking 1966 | . . . . . . . . . . . . . . . . . . . . . . . . . . . 1252 714 Jamming 1639 | . . . . . . . . . . . . 1 . . . . . . . . . . 292 312 289 586 159 . ECM 125 | . . . . . . . . . . . . . . . . . . . . . . . . . . . 1 124 Robot Analysis Total 8 | . . . . 1 . 1 . 2 . . . . . . . . . . . . 4 . . . . . . . Derelict Logs Recovered 19 | . . . 1 . 5 . . . 1 1 . 2 . 3 1 . 2 . 2 1 . . . . . . . . Drone Launches 4 | . . . . . . . . . . . . . . . . . . . . . . . . . . . . 4 Drone Recoveries . | . . . . . . . . . . . . . . . . . . . . . . . . . . . . . Exploration | -11 -10 -10 -10 -8 -8 -6 -6 -6 -6 -6 -6 -5 -5 -5 -5 -5 -4 -4 -4 -4 -4 -3 -3 -3 -2 -2 -2 -1 ------------- Run | Yrd Mat Min Sub Rec Scr Fac Was Fac Low Low Zio Pro Fac Upp Upp War Pro Fac Upp Upp Zhi Pro Res Tes Res Qua Frg Acc Turns Passed 23129 | 160 1012 400 3329 1282 3977 1148 33 1074 403 270 345 487 878 417 330 879 447 922 206 208 158 111 318 507 311 588 2184 745 Spaces Moved 36067 | 76 582 212 1316 526 1606 2409 113 2601 983 756 962 1036 1571 1021 793 1425 931 2376 568 582 351 405 929 1356 688 1527 6266 2100 Core 4 | 4 . . . . . . . . . . . . . . . . . . . . . . . . . . . . Treads 4314 | 72 582 212 1316 526 1606 . . . . . . . . . . . . . . . . . . . . . . . Legs . | . . . . . . . . . . . . . . . . . . . . . . . . . . . . . Wheels . | . . . . . . . . . . . . . . . . . . . . . . . . . . . . . Hover 66 | . . . . . . . . . . . . . . . . . . . . . . . . . . . 66 . Flight 31683 | . . . . . . 2409 113 2601 983 756 962 1036 1571 1021 793 1425 931 2376 568 582 351 405 929 1356 688 1527 6200 2100 Fastest Speed 9 | 50 160 160 160 240 240 29 29 29 34 34 34 34 27 29 32 30 32 21 25 25 25 13 21 21 15 19 9 15 Average Speed 49 | 154 160 160 212 240 240 35 29 32 34 34 34 34 32 31 32 31 32 26 25 25 25 24 24 21 23 20 16 22 Slowest Speed 253 | 160 160 160 240 240 240 97 29 34 34 34 34 94 253 37 32 32 32 28 25 25 25 25 25 21 88 25 120 102 Overloaded Moves 38 | . . . . . . . . 8 . . . . 3 . . . . . . . . 2 . . 6 . 19 . Propulsion Burnouts . | . . . . . . . . . . . . . . . . . . . . . . . . . . . . . Robots Hopped 156 | . . . . . . 10 . 17 . . . . 3 . . 6 . 24 . . 1 . 3 13 5 7 24 43 Potential Cave-ins . | . . . . . . . . . . . . . . . . . . . . . . . . . . . . . Cave-ins Triggered . | . . . . . . . . . . . . . . . . . . . . . . . . . . . . . Teleports 2 | . . . . . . . . . . . . . . . . . . . . . . . . . . . . 2 Exploration Rate (%) 70 | 6 94 59 82 96 86 53 92 54 92 86 85 89 31 96 88 85 87 43 75 72 87 64 24 93 17 91 86 40 Regions Visited 28 Branch Regions 19 Pre-discovered Areas 23 | . . . . 7 5 . . 4 1 . 1 1 . . 1 . . . . 1 2 . . . . . . . Known Exits Taken 19 | . . . . 1 . . . 1 1 1 1 1 1 1 1 1 1 1 1 1 . 1 1 1 1 . 1 . Unknown Exits Taken 7 | 1 1 1 1 . 1 . . . . . . . . . . . . . . . 1 . . . . 1 . . Scrap Searched 46 | . . 1 10 . 4 . . . 4 5 3 3 . 3 4 . 2 . 3 . . 4 . . . . . . Spaces Dug 187 | . . . 13 . . 15 . 7 2 . . 6 6 3 2 5 7 23 1 18 . . 3 5 11 8 24 28 Terrain Destroyed 341 | . . . 15 1 . 18 . 7 2 . . 45 38 24 2 5 8 23 1 24 . . 3 6 27 9 25 58 Melee 186 | . . . 13 . . 14 . 7 2 . . 6 6 3 2 5 7 23 1 18 . . 3 5 11 8 24 28 Projectile 21 | . . . 2 1 . 4 . . . . . 1 . 1 . . 1 . . 6 . . . 1 2 1 1 . AOE 106 | . . . . . . . . . . . . 38 32 20 . . . . . . . . . . . . . 16 Terrain Rammed . | . . . . . . . . . . . . . . . . . . . . . . . . . . . . . Walls Destroyed . | . . . . . . . . . . . . . . . . . . . . . . . . . . . . . Machines Disabled . | . . . . . . . . . . . . . . . . . . . . . . . . . . . . . Actions | -11 -10 -10 -10 -8 -8 -6 -6 -6 -6 -6 -6 -5 -5 -5 -5 -5 -4 -4 -4 -4 -4 -3 -3 -3 -2 -2 -2 -1 --------- Run | Yrd Mat Min Sub Rec Scr Fac Was Fac Low Low Zio Pro Fac Upp Upp War Pro Fac Upp Upp Zhi Pro Res Tes Res Qua Frg Acc Total 40380 | 95 627 234 1656 539 1736 2637 112 2742 1045 765 976 1144 1881 1097 850 1786 1043 2564 628 611 411 415 1001 1529 792 1774 7407 2283 Wait 1752 | . 4 . 145 2 103 95 . 56 48 3 13 67 124 49 31 207 72 51 56 1 18 1 8 73 35 145 335 10 Move 35761 | 75 581 211 1315 525 1605 2390 112 2567 982 755 961 1035 1565 1020 792 1414 930 2330 567 581 348 404 922 1332 677 1513 6221 2031 Hop 121 | . . . . . . 9 . 16 . . . . 2 . . 4 . 21 . . 1 . 3 10 4 6 19 26 Pick Up 239 | 3 15 . 23 1 11 20 . 11 1 1 . . 6 . 2 11 . 18 1 1 1 2 5 13 2 6 70 15 Fast Attach 143 | 7 1 . . . 2 15 . 6 . . . . 10 1 . 6 . 9 . . 3 . . 10 7 4 58 4 Attach 130 | . . . 1 . . 11 . 6 1 . . 3 11 5 1 4 1 9 1 . 1 . 7 5 5 3 25 30 Detach 100 | . 1 . . . 1 11 . 5 . . . 3 11 4 . 4 1 5 . . 2 . 1 2 6 2 28 13 Swap 270 | . 1 3 45 4 . 9 . 21 4 2 . 7 6 4 6 18 4 27 . 2 5 3 1 9 6 10 64 9 Drop 275 | . 4 . 22 2 14 26 . 7 2 . . . 11 . . 15 . 17 1 2 3 3 4 21 9 5 100 7 Fire 175 | 10 18 14 67 4 . 4 . . . . . 3 3 2 . 5 1 . . 6 1 . . 3 13 1 9 11 Melee 1110 | . . 5 38 . . 45 . 47 6 4 2 26 64 12 18 53 34 77 2 18 28 2 50 51 27 79 323 99 Ram . | . . . . . . . . . . . . . . . . . . . . . . . . . . . . . Kick . | . . . . . . . . . . . . . . . . . . . . . . . . . . . . . Crush 4 | . 2 1 . 1 . . . . . . . . . . . . . . . . . . . . . . . . Escape Stasis 182 | . . . . . . . . . . . . . 68 . . . . . . . . . . . 1 . 85 28 Rewire 45 | . . . . . . . . . . . . . . . . 45 . . . . . . . . . . . . Trap 2 | . . . . . . 2 . . . . . . . . . . . . . . . . . . . . . . Miscellaneous 71 | . . . . . . . . . 1 . . . . . . . . . . . . . . . . . 70 . Route ------- -11/Scrapyard -10/Materials (discovered 5 exits: [*Mat x3] / [*Min x2]) -10/Mines (discovered 3 exits: [*Mat x2] / *Sub) -10/Subcaves (discovered 3 exits: [*Mat] / *Rec / *Scr) -8/Recycling (discovered 2 exits: *Fac / *Scr) -8/Scraptown (discovered 2 exits: *Fac x2) -6/Factory (discovered 4 exits: *Fac x2 / *Low x2) -6/Waste -6/Factory (discovered 6 exits: *Fac x4 / *Low x2) -6/Lower Caves -6/Lower Caves (discovered 2 exits: *Fac / *Zio) -6/Zion -5/Proximity Caves -5/Factory (discovered 2 exits: *Upp x2) -5/Upper Caves -5/Upper Caves (discovered 2 exits: *Fac / *War) -5/Warlord -4/Proximity Caves -4/Factory (discovered 7 exits: *Res x3 / *Upp x2 / *Ext x2) -4/Upper Caves -4/Upper Caves (discovered 2 exits: *Res / *Zhi) -4/Zhirov -3/Proximity Caves -3/Research (discovered 3 exits: *Res x2 / *Tes) -3/Testing -2/Research (discovered 2 exits: *Qua x2) -2/Quarantine (discovered 3 exits: *Acc / [*Sec] / *Frg) -2/Protoforge -1/Access (discovered 2 exits: Sur / Com) History --------- Turn | Location | Event 16 | -11/Scrapyard | Discovered new exit (range 16) 161 | -11/Scrapyard | Entered Materials 162 | -10/Materials | Met a group of wandering Federalists 261 | -10/Materials | Discovered new exit (range 8) 303 | -10/Materials | Build established: Mutant 416 | -10/Materials | Discovered new exit (range 16) 745 | -10/Materials | Discovered new exit (range 11) 822 | -10/Materials | Discovered new exit (range 14) 1022 | -10/Materials | Discovered new exit (range 16) 1173 | -10/Materials | Entered Mines 1248 | -10/Mines | Discovered new exit (range 7) 1354 | -10/Mines | Discovered new exit (range 7) 1527 | -10/Mines | Assembled infested the area 1570 | -10/Mines | Discovered new exit (range 3) 1573 | -10/Mines | Entered Subcaves 1574 | -10/Subcaves | Approached by a straggling Scientist 1611 | -10/Subcaves | Shifting Twisted Machinery released Sub. Beam Cannon 1612 | -10/Subcaves | Shifting Twisted Machinery released Flamer 2058 | -10/Subcaves | Scientist uncovered a shortcut to Scraptown 2327 | -10/Subcaves | Shifting Twisted Machinery released Flamer 2331 | -10/Subcaves | Shifting Twisted Machinery released Mak. Light Armor Plating 2446 | -10/Subcaves | Visited 4L-MR0's lab 2468 | -10/Subcaves | Found Flightbrick 2610 | -10/Subcaves | A swath of the cavern ceiling suddenly collapsed 3231 | -10/Subcaves | Visited Clippyterm 3238 | -10/Subcaves | Learned Factory fabricator intel 3238 | -10/Subcaves | Learned Factory emergency access door positions 3507 | -10/Subcaves | Learned Materials emergency access door positions 3699 | -10/Subcaves | Discovered new exit (range 10) 3723 | -10/Subcaves | A Subdweller sparked back to life 3809 | -10/Subcaves | Found Gun Armor 4029 | -10/Subcaves | Build established: Scavenger-Mutant 4152 | -10/Subcaves | Shifting Twisted Machinery released Shrapnel Trap 4817 | -10/Subcaves | A swath of the cavern ceiling suddenly collapsed 4898 | -10/Subcaves | Discovered new exit (range 3) 4902 | -10/Subcaves | Entered Recycling 5138 | -8/Recycling | Scanned before Scraplab entrance 5667 | -8/Recycling | Discovered new exit (range 16) 5703 | -8/Recycling | Learned 4 Lower Caves zone layouts 5776 | -8/Recycling | Identified exit to Scraptown 5888 | -8/Recycling | Learned 4 Factory zone layouts 5928 | -8/Recycling | Learned 2 Lower Caves zone layouts 5977 | -8/Recycling | Learned location of 1 exit from Storage 6007 | -8/Recycling | Learned Storage stockpile data 6098 | -8/Recycling | Learned location of 1 exit from Recycling 6133 | -8/Recycling | Build established: Mutant 6159 | -8/Recycling | Entered Scraplab 6161 | -8/Recycling | Learned Factory emergency access door positions 6184 | -8/Recycling | Entered Scraptown 6715 | -8/Scraptown | Heard Great Nut preacher, LISTEN AND RECITE! 6804 | -8/Scraptown | Visited UFD Registry 6804 | -8/Scraptown | Registered with UFD as "Cogpod" 6832 | -8/Scraptown | Visited Cyclists 6854 | -8/Scraptown | Entered Cyclist Reading Room 6864 | -8/Scraptown | Learned location of Zion (-6) 6897 | -8/Scraptown | Visited Comm Corps 6914 | -8/Scraptown | Visited Fellowship of the Rings 6948 | -8/Scraptown | Visited IN-MT5's Study 6996 | -8/Scraptown | Visited TADAMA 7134 | -8/Scraptown | Visited Spacefarers 7158 | -8/Scraptown | Visited Cave Peace 7235 | -8/Scraptown | Visited Scrapoid Research Area 7458 | -8/Scraptown | Scanned Subdweller tech in exchange for log data 7463 | -8/Scraptown | Learned location of Warlord (-5) 7465 | -8/Scraptown | Learned Factory emergency access door positions 7468 | -8/Scraptown | Learned 12 Factory zone layouts 7470 | -8/Scraptown | Learned location of Armory (-3) 7472 | -8/Scraptown | Learned Research interactive machine intel 7672 | -8/Scraptown | Visited Science Guys 7927 | -8/Scraptown | Guru changed UFD alias to "Technochip" 7968 | -8/Scraptown | Discovered new exit (range 13) 8568 | -8/Scraptown | Visited Derelict Rescue Squad 8582 | -8/Scraptown | Found DRS Beacon 8638 | -8/Scraptown | Visited Sword Containment 8663 | -8/Scraptown | Found Prototype Slashing Weapon 8663 | -8/Scraptown | Identified Companion Sword 8758 | -8/Scraptown | Delivered Scrap Shield to a Scientist 8983 | -8/Scraptown | Visited Infowarlord's Domain 8995 | -8/Scraptown | Found Exp. Sensor Array 9053 | -8/Scraptown | Visited Abandonware Association 9080 | -8/Scraptown | Learned abandonware demo "SHUTEYE.EXE" 9080 | -8/Scraptown | Learned abandonware demo "KABOOM.EXE" 9134 | -8/Scraptown | Visited Scrap Suit Storage 9172 | -8/Scraptown | Visited Observation Area 9213 | -8/Scraptown | Visited Chapter 10 10034 | -8/Scraptown | Met Optimus 10034 | -8/Scraptown | Accepted into 0bPrime 10156 | -8/Scraptown | Discovered new exit (range 3) 10161 | -8/Scraptown | Entered Factory 10161 | -6/Factory | Evolved 8 slots: Propulsion x3, Utility x5 10162 | -6/Factory | Identified exit to Factory 10164 | -6/Factory | Loaded intel: 4 fabricator locations 10165 | -6/Factory | Attached Flightbrick, gained temporary slots: Utility x3 10377 | -6/Factory | Discovered new exit (range 18) 10398 | -6/Factory | Identified exit to Lower Caves 10768 | -6/Factory | Loaded intel: 7 recycling unit locations 10887 | -6/Factory | Spotted B-75 Beast 10920 | -6/Factory | Discovered exit to Factory (range 5) 11032 | -6/Factory | Build established: Hacker-Scout 11055 | -6/Factory | Cargo convoy interrupted 11130 | -6/Factory | Found PL-3XN's Ring of Power 11154 | -6/Factory | Lost 3 allies 11186 | -6/Factory | Fabricated Imp. Propulsion Shielding (x2) 11309 | -6/Factory | Manually triggered Chute Trap 11309 | -6/Factory | Sucked down chute 11309 | -6/Factory | Entered Waste 11310 | -6/Waste | Met a frightened Derelict 11320 | -6/Waste | Spotted C-40 Crusher 11323 | -6/Waste | Spotted C-40 Crusher 11324 | -6/Waste | EMP discharged 11325 | -6/Waste | Spotted C-40 Crusher 11326 | -6/Waste | Spotted C-40 Crusher 11331 | -6/Waste | Spotted C-40 Crusher 11332 | -6/Waste | Spotted C-40 Crusher 11334 | -6/Waste | Discovered new exit (range 14) 11342 | -6/Waste | Identified exit to Factory 11342 | -6/Waste | Entered Factory 11360 | -6/Factory | Loaded intel: 8 recycling unit locations 11360 | -6/Factory | Learned location of Protoforge (-2) 11514 | -6/Factory | Discovered exit to Factory (range 16) 11605 | -6/Factory | Discovered exit to Factory (range 5) 11847 | -6/Factory | Learned Factory emergency access door positions 11888 | -6/Factory | Learned 2 Lower Caves zone layouts 11919 | -6/Factory | Learned 2 Proximity Caves zone layouts 11960 | -6/Factory | Learned location of Extension (-4) 11969 | -6/Factory | Found Scatter Rocket Array 12011 | -6/Factory | Learned location of Hub_04(d) (-4) 12018 | -6/Factory | Central database locked down 12138 | -6/Factory | Fabricated Imp. Propulsion Shielding (x2) 12416 | -6/Factory | Entered Lower Caves 12418 | -6/Lower Caves | UFD Scientist delivered a prototype 12419 | -6/Lower Caves | Found Prototype Protection 12420 | -6/Lower Caves | Activated DRS Beacon 12439 | -6/Lower Caves | Build established: Mutant 12497 | -6/Lower Caves | Attracted the attention of an 0b10 checkpoint 12659 | -6/Lower Caves | Found DCF Scrap (14 items) 12748 | -6/Lower Caves | Encountered a Warlord checkpoint 12753 | -6/Lower Caves | Discovered new exit (range 15) 12807 | -6/Lower Caves | Identified exit to Lower Caves 12819 | -6/Lower Caves | Entered another Lower Caves area 12888 | -6/Lower Caves | Encountered a Warlord checkpoint 12918 | -6/Lower Caves | Learned location of 1 exit from Factory 12932 | -6/Lower Caves | Discovered new exit (range 11) 12975 | -6/Lower Caves | Identified exit to Zion 13089 | -6/Lower Caves | Entered Zion 13125 | -6/Zion | Discovered new exit (range 10) 13136 | -6/Zion | System corruption cleaned by Quarantine Array 13203 | -6/Zion | Received a hallucinogenic algorithm 13247 | -6/Zion | Turned away by Imprinter 13326 | -6/Zion | Visited the Megawrench Repair Shop 13326 | -6/Zion | Megawrench repaired 9 parts 13433 | -6/Zion | Identified exit to Proximity Caves 13434 | -6/Zion | Entered Proximity Caves 13693 | -5/Proximity Caves | Spotter reported a threat 13787 | -5/Proximity Caves | Spotted B-75 Beast 13804 | -5/Proximity Caves | Learned Factory trap positions 13921 | -5/Proximity Caves | Entered Factory 13921 | -5/Factory | Evolved 2 slots: Propulsion x1, Utility x1 13922 | -5/Factory | Identified exit to Upper Caves 13923 | -5/Factory | Loaded intel: 108 trap records 14100 | -5/Factory | Loaded intel: 8 recycling unit locations 14186 | -5/Factory | Build established: Sprinter 14426 | -5/Factory | Identified Enh. Scrap Shield 14459 | -5/Factory | Repaired Imp. Propulsion Shielding? 14466 | -5/Factory | Cargo convoy interrupted 14722 | -5/Factory | Build established: Mutant 14799 | -5/Factory | Entered Upper Caves 14806 | -5/Upper Caves | Found Alien Artifact 14806 | -5/Upper Caves | Identified Core Expander 14806 | -5/Upper Caves | Installed Core Expander, added new Propulsion slot 14879 | -5/Upper Caves | Learned Factory stockpile data 14966 | -5/Upper Caves | Learned Factory stockpile data 14969 | -5/Upper Caves | Entered a destroyed Warlord outpost 14988 | -5/Upper Caves | Discovered new exit (range 8) 14990 | -5/Upper Caves | Identified exit to Upper Caves 15103 | -5/Upper Caves | Build established: Sprinter 15144 | -5/Upper Caves | Destroyed 9 combat bots 15216 | -5/Upper Caves | Entered another Upper Caves area 15234 | -5/Upper Caves | Discovered new exit (range 9) 15237 | -5/Upper Caves | Identified exit to Factory 15388 | -5/Upper Caves | Discovered new exit (range 3) 15389 | -5/Upper Caves | Identified exit to Warlord 15528 | -5/Upper Caves | Attacked by a delusional Derelict stockpiling parts 15546 | -5/Upper Caves | Entered Warlord 15557 | -5/Warlord | System corruption cleaned by Quarantine Array 15791 | -5/Warlord | Found Prototype Device 15791 | -5/Warlord | Identified Exp. Focal Shield 15795 | -5/Warlord | Warlord's base attacked by MAIN.C 15842 | -5/Warlord | Rebuked by Warlord 15853 | -5/Warlord | Found Prototype Energy Gun 15853 | -5/Warlord | Identified Vortex Rail 15856 | -5/Warlord | Found Prototype Energy Gun 15856 | -5/Warlord | Identified Vortex Shotgun 15861 | -5/Warlord | Found Vortex Shotgun 15932 | -5/Warlord | Build established: Commander-Sprinter 16007 | -5/Warlord | Warlord forces counterattacked 16095 | -5/Warlord | Spotted Executioner 16096 | -5/Warlord | Attached CPS modules to Executioner. 16101 | -5/Warlord | Spotted Executioner 16111 | -5/Warlord | Attached CPS modules to Executioner. 16124 | -5/Warlord | Found Prototype Processor 16125 | -5/Warlord | Identified Exp. Targeting Computer 16129 | -5/Warlord | Found Prototype Processor 16129 | -5/Warlord | Identified Exp. Core Analyzer 16134 | -5/Warlord | Found Exp. Core Analyzer 16149 | -5/Warlord | Lost 7 allies 16167 | -5/Warlord | Discovered new exit (range 14) 16181 | -5/Warlord | Identified exit to Proximity Caves 16254 | -5/Warlord | Lost 6 allies 16298 | -5/Warlord | Spotted Striker 16334 | -5/Warlord | Lost 4 allies 16392 | -5/Warlord | Build established: Sprinter 16395 | -5/Warlord | Spotted Striker 16395 | -5/Warlord | Spotted Striker 16425 | -5/Warlord | Entered Proximity Caves 16451 | -4/Proximity Caves | Lost 12 allies 16485 | -4/Proximity Caves | Spotted B-86 Titan 16504 | -4/Proximity Caves | Learned Research emergency access door positions 16528 | -4/Proximity Caves | Learned Research security intel 16811 | -4/Proximity Caves | Attracted the attention of an 0b10 checkpoint 16859 | -4/Proximity Caves | Forged Quantum Companion 16870 | -4/Proximity Caves | Discovered exit to Factory (range 7) 16872 | -4/Proximity Caves | Attracted the attention of an 0b10 outpost 16872 | -4/Proximity Caves | Entered Factory 16872 | -4/Factory | Evolved 2 slots: Propulsion x1, Utility x1 17026 | -4/Factory | Loaded intel: 8 recycling unit locations 17222 | -4/Factory | Identified exit to Upper Caves 17222 | -4/Factory | Identified exit to Extension 17224 | -4/Factory | Discovered new exit (range 3) 17225 | -4/Factory | Identified exit to Research 17370 | -4/Factory | Discovered exit to Research (range 11) 17503 | -4/Factory | Discovered exit to Research (range 7) 17756 | -4/Factory | Cargo convoy interrupted 17794 | -4/Factory | Entered Upper Caves 17894 | -4/Upper Caves | Learned location of 1 exit from Research 17894 | -4/Upper Caves | Learned 12 Research zone layouts 17910 | -4/Upper Caves | Spotted B-86 Titan 17998 | -4/Upper Caves | Discovered new exit (range 3) 17998 | -4/Upper Caves | Identified exit to Upper Caves 18000 | -4/Upper Caves | Entered another Upper Caves area 18037 | -4/Upper Caves | Discovered exit to Research (range 3) 18082 | -4/Upper Caves | Spotted B-86 Titan 18153 | -4/Upper Caves | Discovered new exit (range 15) 18208 | -4/Upper Caves | Identified exit to Zhirov 18208 | -4/Upper Caves | Entered Zhirov 18208 | -4/Zhirov | Discovered new exit (range 3) 18213 | -4/Zhirov | Met Zhirov 18218 | -4/Zhirov | Learned location of Quarantine (-2) 18218 | -4/Zhirov | Learned location of Testing (-3) 18220 | -4/Zhirov | Zhirov requested help retrieving the SGEMP Prototype 18224 | -4/Zhirov | Found Alien Artifact 18224 | -4/Zhirov | Identified Integrated Reactor 18224 | -4/Zhirov | Installed Integrated Reactor, increased core energy generation (+10) 18249 | -4/Zhirov | Found Alien Artifact 18261 | -4/Zhirov | Attacked by Zhirov 18271 | -4/Zhirov | Zhirov warped through subspace 18280 | -4/Zhirov | Zhirov detonated his lab 18280 | -4/Zhirov | Cloak Generator disabled 18290 | -4/Zhirov | Enhanced Grunts warped into view 18317 | -4/Zhirov | Found Prototype Device 18317 | -4/Zhirov | Identified Exp. Thermal Shield 18366 | -4/Zhirov | Entered Proximity Caves 18375 | -3/Proximity Caves | Murdered 9 allies 18475 | -3/Proximity Caves | Discovered exit to Research (range 8) 18477 | -3/Proximity Caves | Entered Research 18477 | -3/Research | Evolved 2 slots: Utility x2 18478 | -3/Research | Identified exit to Testing 18479 | -3/Research | Identified exit to Research 18482 | -3/Research | Loaded intel: 43 interactive machine locations 18626 | -3/Research | Identified Transdimensional Reconstructor 18654 | -3/Research | Unchained authorized (QV-33N) 18721 | -3/Research | Spotted B-86 Titan 18754 | -3/Research | Discovered exit to Research (range 12) 18755 | -3/Research | Loaded intel: 5 recycling unit locations 18770 | -3/Research | Destroyed 7 combat bots 18795 | -3/Research | Entered Testing 18818 | -3/Testing | Found Prototype Device 18818 | -3/Testing | Identified AEGIS Remote Shield 18851 | -3/Testing | Spotted PY-WJ6DO2IE0F 18856 | -3/Testing | Attached CPS modules to PY-WJ6DO2IE0F. 18877 | -3/Testing | Destroyed PY-WJ6DO2IE0F 18879 | -3/Testing | Found Prototype Device 18879 | -3/Testing | Identified Thermal Barrier 18908 | -3/Testing | Attached CPS modules to PG-EQ8IMRNIW7. 18952 | -3/Testing | Found Prototype Hackware 18954 | -3/Testing | Identified Exp. Hacking Suite 19093 | -3/Testing | Found Prototype Ballistic Cannon 19093 | -3/Testing | Identified Perforator 19102 | -3/Testing | Found Prototype Hackware 19102 | -3/Testing | Identified Ghost Barrier 19195 | -3/Testing | Build established: Hacker-Sprinter 19250 | -3/Testing | Found Prototype Energy Gun 19250 | -3/Testing | Identified Warp Gun 19268 | -3/Testing | Spotted Striker 19288 | -3/Testing | Discovered exit to Research (range 7) 19302 | -3/Testing | Entered Research 19302 | -2/Research | Evolved 2 slots: Power x1, Utility x1 19469 | -2/Research | Spotted B-90 Cyclops 19488 | -2/Research | Loaded intel: 5 recycling unit locations 19496 | -2/Research | Unchained authorized (QV-33N) 19555 | -2/Research | Identified exit to Quarantine 19589 | -2/Research | Repaired Exp. Utility Shielding 19613 | -2/Research | Entered Quarantine 19790 | -2/Quarantine | Discovered new exit (range 15) 19826 | -2/Quarantine | Found Alien Artifact 19828 | -2/Quarantine | Identified Subatomic Replicator 19828 | -2/Quarantine | Forged Prototype Slashing Weapon 20051 | -2/Quarantine | Found Alien Slashing Weapon 20079 | -2/Quarantine | Learned 4 Access zone layouts 20085 | -2/Quarantine | Spotted Fortress 20106 | -2/Quarantine | Discovered new exit (range 5) 20106 | -2/Quarantine | Discovered new exit (range 6) 20108 | -2/Quarantine | Learned Research stockpile data 20129 | -2/Quarantine | Learned Section 7 stockpile data 20139 | -2/Quarantine | Learned Access recycling unit intel 20140 | -2/Quarantine | Learned Section 7 stockpile data 20152 | -2/Quarantine | Learned 8 Research zone layouts 20198 | -2/Quarantine | Learned 4 Section 7 zone layouts 20201 | -2/Quarantine | Entered Protoforge 20202 | -2/Protoforge | Identified exit to Access 20228 | -2/Protoforge | Spotted Hotshot 20291 | -2/Protoforge | Spotted B-90 Cyclops 20293 | -2/Protoforge | Spotted Hotshot 20293 | -2/Protoforge | Spotted Hotshot 20317 | -2/Protoforge | Spotted Overlord 20329 | -2/Protoforge | Superfortress began startup sequence 20375 | -2/Protoforge | Garrison activated, responded to threat 20427 | -2/Protoforge | Spotted Decapitator 20427 | -2/Protoforge | Spotted Decapitator 20433 | -2/Protoforge | Destroyed Decapitator 20434 | -2/Protoforge | Destroyed Decapitator 20448 | -2/Protoforge | Forge Plexus network access discovered 20477 | -2/Protoforge | Spotted Immortal 20477 | -2/Protoforge | Spotted Immortal 20477 | -2/Protoforge | Spotted Decapitator 20477 | -2/Protoforge | Spotted Decapitator 20477 | -2/Protoforge | Spotted Decapitator 20477 | -2/Protoforge | Spotted Decapitator 20487 | -2/Protoforge | Found Femtoactuators 20489 | -2/Protoforge | Found Cep. Melee Reflex Suite 20491 | -2/Protoforge | Found Cep. Weapon Articulator 20495 | -2/Protoforge | Found Femtoactuators 20500 | -2/Protoforge | Found Crosscalibrator 20525 | -2/Protoforge | Spotted Decapitator 20525 | -2/Protoforge | Spotted Decapitator 20525 | -2/Protoforge | Spotted V711-k 20525 | -2/Protoforge | Spotted V659-c 20525 | -2/Protoforge | Spotted Decapitator 20530 | -2/Protoforge | Found Cep. Antigrav Storage Unit 20638 | -2/Protoforge | Spotted Immortal 20638 | -2/Protoforge | Spotted Immortal 20638 | -2/Protoforge | Spotted Decapitator 20638 | -2/Protoforge | Spotted Decapitator 20638 | -2/Protoforge | Spotted Decapitator 20640 | -2/Protoforge | Destroyed Decapitator 20644 | -2/Protoforge | Destroyed Decapitator 20647 | -2/Protoforge | Destroyed Immortal 20668 | -2/Protoforge | Destroyed 16 combat bots 20668 | -2/Protoforge | Destroyed Immortal 20669 | -2/Protoforge | Found Prototype Device 20669 | -2/Protoforge | Identified Exp. Cloaking Device 20674 | -2/Protoforge | Found Prototype Device 20674 | -2/Protoforge | Identified Cep. Antimissile System 20678 | -2/Protoforge | Found Prototype Processor 20678 | -2/Protoforge | Identified Exp. Melee Analysis Suite 20697 | -2/Protoforge | Destroyed Decapitator 20707 | -2/Protoforge | Spotted V464-o 20717 | -2/Protoforge | Destroyed V464-o 20730 | -2/Protoforge | Found Prototype Processor 20730 | -2/Protoforge | Identified Exp. Target Analyzer 20736 | -2/Protoforge | Found Prototype Device 20736 | -2/Protoforge | Identified Exp. Shield Generator 20748 | -2/Protoforge | Spotted V854-i 20752 | -2/Protoforge | Destroyed V854-i 20753 | -2/Protoforge | Found Prototype Launcher 20753 | -2/Protoforge | Identified Hellfire Missile Launcher 20762 | -2/Protoforge | Found Cep. Gyrokinetic System 20783 | -2/Protoforge | Found Cep. Gyrokinetic System 20785 | -2/Protoforge | Found Cep. Gyrokinetic System 20789 | -2/Protoforge | Found Cep. Combat Aerolev Unit 20797 | -2/Protoforge | Found Cep. Gyrokinetic System 20800 | -2/Protoforge | Found Faulty Cep. Combat Aerolev Unit 20857 | -2/Protoforge | Spotted V989-t 20857 | -2/Protoforge | Spotted V525-o 20857 | -2/Protoforge | Spotted V346-e 20861 | -2/Protoforge | System corruption reached 10% 20890 | -2/Protoforge | Spotted Immortal 20890 | -2/Protoforge | Spotted Immortal 20895 | -2/Protoforge | Spotted V433-z 20900 | -2/Protoforge | Found Cep. Zero-point Core 20902 | -2/Protoforge | Found Cep. Zero-point Core 20904 | -2/Protoforge | Found Faulty Cep. Zero-point Core 20906 | -2/Protoforge | Found Faulty Cep. Zero-point Core 20931 | -2/Protoforge | Found Cep. Network Penetrator 20934 | -2/Protoforge | Found Cep. Network Penetrator 20953 | -2/Protoforge | Spotted AP7-3 20953 | -2/Protoforge | Spotted AP7-3 20998 | -2/Protoforge | Destroyed AP7-3 21001 | -2/Protoforge | Destroyed AP7-3 21002 | -2/Protoforge | Found Prototype Device 21002 | -2/Protoforge | Identified Exp. ECM Suite 21010 | -2/Protoforge | Scanned by Researcher 21032 | -2/Protoforge | Found Cep. Cloak Mesh 21040 | -2/Protoforge | Found Cep. Cloak Mesh 21075 | -2/Protoforge | Additional patrols dispatched to research labs 21078 | -2/Protoforge | Found Transdimensional Reconstructor 21108 | -2/Protoforge | Spotted EXE-6 21108 | -2/Protoforge | Spotted EXE-6 21114 | -2/Protoforge | UFD initiated attack on Protoforge (Readiness: High) 21114 | -2/Protoforge | Loaded intel: 3 recycling unit locations 21157 | -2/Protoforge | Optimus greeted in Protoforge 21166 | -2/Protoforge | Spotted SKR-2 21167 | -2/Protoforge | Spotted SKR-2 21167 | -2/Protoforge | Spotted SKR-2 21176 | -2/Protoforge | Destroyed SKR-2 21179 | -2/Protoforge | Destroyed SKR-2 21208 | -2/Protoforge | Fabricated Electron Diverter (x1) 21208 | -2/Protoforge | Fabricated Electron Diverter (x1) 21209 | -2/Protoforge | Fabricated Electron Diverter? 21209 | -2/Protoforge | Build established: Scavenger-Sprinter 21210 | -2/Protoforge | Fabricated Electron Diverter? 21241 | -2/Protoforge | Found UFD Drillbomb 21253 | -2/Protoforge | Spotted AP7-3 21253 | -2/Protoforge | Spotted AP7-3 21285 | -2/Protoforge | Core integrity fell below 50% 21286 | -2/Protoforge | Destroyed AP7-3 21299 | -2/Protoforge | Spotted Striker 21300 | -2/Protoforge | Spotted Striker 21309 | -2/Protoforge | Destroyed Striker 21356 | -2/Protoforge | Lost 7 allies 21359 | -2/Protoforge | Spotted Executioner 21359 | -2/Protoforge | Spotted Executioner 21362 | -2/Protoforge | Destroyed Executioner 21383 | -2/Protoforge | Installed UFD Drillbomb at designated target 21383 | -2/Protoforge | UFD reported confirmed Drillbomb installation 21386 | -2/Protoforge | Destroyed 17 combat bots 21391 | -2/Protoforge | Spotted Striker 21391 | -2/Protoforge | Spotted Striker 21391 | -2/Protoforge | Found Exp. Core Analyzer 21400 | -2/Protoforge | Destroyed Striker 21416 | -2/Protoforge | Destroyed Hotshot 21418 | -2/Protoforge | Destroyed Hotshot 21429 | -2/Protoforge | Lost 3 parts (3u) 21445 | -2/Protoforge | Destroyed Overlord 21447 | -2/Protoforge | Found UFD Drillbomb 21450 | -2/Protoforge | Found Prototype Protection 21450 | -2/Protoforge | Identified Centrium Heavy Armor Plating 21475 | -2/Protoforge | Spotted Executioner 21475 | -2/Protoforge | Spotted Executioner 21475 | -2/Protoforge | Spotted Executioner 21489 | -2/Protoforge | Found UFD Drillbomb 21511 | -2/Protoforge | Destroyed Executioner 21526 | -2/Protoforge | Spotted Striker 21549 | -2/Protoforge | Lost 16 allies 21580 | -2/Protoforge | Spotted Executioner 21632 | -2/Protoforge | Spotted Executioner 21633 | -2/Protoforge | Spotted Executioner 21640 | -2/Protoforge | Spotted Hotshot 21643 | -2/Protoforge | Destroyed Hotshot 21661 | -2/Protoforge | Found UFD Drillbomb 21673 | -2/Protoforge | Spotted Executioner 21684 | -2/Protoforge | Spotted Striker 21689 | -2/Protoforge | Destroyed Striker 21695 | -2/Protoforge | Installed UFD Drillbomb at designated target 21695 | -2/Protoforge | UFD reported confirmed Drillbomb installation 21717 | -2/Protoforge | Destroyed Executioner 21749 | -2/Protoforge | Installed UFD Drillbomb at designated target 21749 | -2/Protoforge | UFD reported confirmed Drillbomb installation 21756 | -2/Protoforge | Destroyed 8 combat bots 21767 | -2/Protoforge | Spotted Striker 21793 | -2/Protoforge | Destroyed Striker 21794 | -2/Protoforge | Spotted Striker 21801 | -2/Protoforge | Destroyed Striker 21829 | -2/Protoforge | Core integrity fell below 20% 21831 | -2/Protoforge | Installed UFD Drillbomb at designated target 21831 | -2/Protoforge | UFD reported confirmed Drillbomb installation 21837 | -2/Protoforge | Spotted Hotshot 21845 | -2/Protoforge | Found UFD Drillbomb 21854 | -2/Protoforge | Spotted Hotshot 21861 | -2/Protoforge | UFD reported confirmed Drillbomb installation 21871 | -2/Protoforge | Installed UFD Drillbomb at designated target 21871 | -2/Protoforge | UFD reported confirmed Drillbomb installation 21886 | -2/Protoforge | Found UFD Drillbomb 21892 | -2/Protoforge | Spotted Executioner 21936 | -2/Protoforge | Spotted Striker 21939 | -2/Protoforge | Spotted Executioner 21949 | -2/Protoforge | UFD reported confirmed Drillbomb installation 21953 | -2/Protoforge | Destroyed Striker 21964 | -2/Protoforge | Installed UFD Drillbomb at designated target 21964 | -2/Protoforge | UFD reported confirmed Drillbomb installation 21980 | -2/Protoforge | Lost 3 allies 21991 | -2/Protoforge | Found Cep. Chromion Battery 21992 | -2/Protoforge | Found Cep. Chromion Battery 22010 | -2/Protoforge | Found Cep. Melee Reflex Suite 22013 | -2/Protoforge | Found Cep. Weapon Articulator 22016 | -2/Protoforge | Found Cep. Weapon Articulator 22040 | -2/Protoforge | Destroyed Immortal 22040 | -2/Protoforge | Found Cep. Antimissile System 22043 | -2/Protoforge | Found Exp. Melee Analysis Suite 22049 | -2/Protoforge | Destroyed Immortal 22051 | -2/Protoforge | Found Cep. Antimissile System 22053 | -2/Protoforge | Found Exp. Cloaking Device 22097 | -2/Protoforge | Spotted Executioner 22108 | -2/Protoforge | Spotted Hotshot 22108 | -2/Protoforge | Spotted Hotshot 22193 | -2/Protoforge | Found UFD Drillbomb 22197 | -2/Protoforge | Repaired Broken Electron Diverter? 22299 | -2/Protoforge | UFD reported confirmed Drillbomb installation 22363 | -2/Protoforge | Installed UFD Drillbomb at designated target 22363 | -2/Protoforge | UFD reported confirmed Drillbomb installation 22364 | -2/Protoforge | UFD began Drillbomb countdown 22385 | -2/Protoforge | Entered Access 22385 | -1/Access | Evolved 2 slots: Utility x1, Weapon x1 22385 | -1/Access | Identified Sigix Broadsword 22386 | -1/Access | Identified exit to Surface 22387 | -1/Access | Loaded intel: 4 recycling unit locations 22411 | -1/Access | Build established: Hacker-Sprinter 22512 | -1/Access | High security lockdown imminent 22561 | -1/Access | Identified exit to Command 22592 | -1/Access | High security lockdown engaged 22628 | -1/Access | Destroyed 8 combat bots 22724 | -1/Access | Destroyed 9 combat bots 22741 | -1/Access | Spotted B-99 Colossus 22847 | -1/Access | Spotted Executioner 22873 | -1/Access | Spotted Executioner 22873 | -1/Access | Spotted Executioner 22874 | -1/Access | Spotted Investigator 22883 | -1/Access | Lost 6 parts (1n5u) 22910 | -1/Access | Destroyed Investigator 22928 | -1/Access | Lost 3 parts (2n1u) 22934 | -1/Access | Warped through subspace 22944 | -1/Access | Destroyed Executioner 22947 | -1/Access | Destroyed Executioner 22958 | -1/Access | Lost 3 allies 22965 | -1/Access | System corruption reached 10% 22980 | -1/Access | Destroyed 18 combat bots 23041 | -1/Access | Lost 3 parts (3u) 23045 | -1/Access | Energy Cycler disabled 23069 | -1/Access | Spotted Investigator 23070 | -1/Access | Warped through subspace 23071 | -1/Access | Core integrity fell below 50% 23102 | -1/Access | Spotted Executioner 23102 | -1/Access | Spotted Striker 23102 | -1/Access | Spotted Striker 23122 | -1/Access | Core integrity fell below 20% 23127 | -1/Access | Spotted Executioner 23127 | -1/Access | Spotted Striker 23130 | -1/Access | Destroyed by Executioner with Helical Railgun Last Messages --------------- 23118_ Adv. Melee Analysis Suite destroyed. 23120_ ECM Suite destroyed. 23120_ Knocked back. 23123_ Slug penetrates Wall. 23124_ System corrupted: Heat flow error (+287). 23126_ Exp. Biomechanical Wings destroyed. 23127_ C-45 Heavy ARC bursts open, deploying its payload. 23127_ Executioner unfolds itself. 23127_ P-80 Master unfolds itself. 23127_ Striker unfolds itself. 23127_ I-47 Archangel unfolds itself. 23127_ W-44 Eye sends out distress signal. 23127_ Knocked back. 23129_ C-45 Heavy ARC bursts open, deploying its payload. 23129_ G-73 Enforcer unfolds itself. 23129_ L-61 Swordsman unfolds itself. 23129_ B-74 Champion unfolds itself. 23129_ E-15 Imp unfolds itself. 23130_ G-73 Enforcer knocked back. 23130_ Penetrated by Slug. Map ----- +----------------------------------------------------+ | ???????????????# ???? ????# ## ### | | ????????######## ????? ????#"" # ## | | ????????# # ?????? ????#"" # ##### | | ????????# % #?????????????#"T + | | ????????# ! #?????????????#" # | | ????????# % %#?????????????#"" # ###/# | | ????????# %#?????????????# # # | | ????????# %*%/#?????????????# ### ### | | ????????######/###??????????####+######?# #?# | | ???????????# %! #?#####????# #????# #?# !! | | ???????????# ### #????# #????# #?# !! | | ???????????# " " #????# " #????# #?#* != | | ???????????# ### #????# #????# #?# | | ???????????# #?## ##????# #????# #?# | | ???????????### ###??#g#?????# #????# #?# | | ?????????????# #??###l#?????### ###????# ?+ | | ????????######+######l#???????# #??????# #?# | | ????????# #g#???????# #??????# #?# | | ????????# #h####????# #??????? ??##### | | ######### # # ####?# #??????? ??????? | | ! # #b### #?# #??????? ??????? | | # %K#K######### ###### ????? | | "" # # p % p/g ! ##### | | "" # /KE i %%=*!= g % H | | """" # # w g!=w%/% | | """" #"b ;% [!@%[=%=! ! ##### | | "" #% g ####;############## ! ????? | | "" /" e !% ###########?????????#####????? | | # = #????????????????????????????? | | # #????????????????????????????? | | ##############???????????????????????????? | | #??????????? #???????????????????????????? | | #########???????????#????????????????????????????? | | ???????????????????????????????????????########### | | ???????????????????????????????????????# ! | | ???????????????????????????????????????#! | | ???????????????????????????????????????# ! !] | | ???????????????????????????????????????# !] | | ???????????????????????????????????????# | | ???????????????????????????????????????########### | | ?????????????????????????????????????????????????? | | ?????????????????????????????????????????????????? | | ?????????????????????????????????????????????????? | | ?????????????????????????????????????????????????? | | ?????????????????????????????????????????????????? | | ???????????????????????????##############????????? | | ???????????????????????????# """"" #????????? | | ???????????????????????????# ""T"" #??## #??? | | ???????????????????????????? #??# ? | | ???????????????????????????# *#??? | +----------------------------------------------------+ Best States ------------- Heat Dissipation 85 Energy Generation 71 Energy Capacity 1650 Matter Stores 300 Matter Capacity 300 Sight Range 20 Robot Scan Range 20 Terrain Scan Range 20 Terrain Scan Density 10 ECM Strength 1 Jamming Range 16 Cloak Strength 9 Additional Mass Support 20 Armor Coverage 1025 Resistance: KI 30 Resistance: TH 50 Propulsion Shielding 90 Utility Shielding 90 Point Defense Rating 480 Melee Speed Boost 50 Phase Shifting 15 Evasion (%) 96 Targeting Accuracy 30 Melee Accuracy 24 Core Analysis 12 Armor Integrity Analysis 40 Recoil Reduction 2 Offensive Hacking 50 Defensive Hacking 20 Item Schematics ----------------- Hacking Suite | -8/Recycling | Hacked Imp. Propulsion Shielding | -8/Recycling | Hacked Powered Hammer | -8/Recycling | Hacked Lrn. Missile Launcher | -8/Recycling | Hacked Lgt. Fission Core | -6/Factory | Hacked Exp. Sensor Array | -6/Factory | Scanalyzed CPS Tube | -6/Factory | Scanalyzed Microactuators | -6/Factory | Scanalyzed Lyr. Light Armor Plating | -6/Factory | Scanalyzed Triangulator | -6/Factory | Scanalyzed Imp. Plasma Cutter | -6/Zion | Archive Imp. Medium Treads | -6/Zion | Archive Imp. System Restoration Module | -6/Zion | Archive Imp. Kinecellerator | -6/Zion | Archive Imp. Component Analysis Suite | -6/Zion | Archive Nuclear Pulse Thruster | -6/Zion | Archive Adv. Thermal Shield | -6/Zion | Archive Adv. Sensor Array | -6/Zion | Archive Imp. Transmission Jammer | -6/Zion | Archive Force Field | -6/Zion | Archive Remote Force Field | -6/Zion | Archive Imp. Reaction Control System | -6/Zion | Archive Tesla Rifle | -6/Zion | Archive Imp. Cryofiber Web | -6/Zion | Archive Impulse Thruster | -6/Zion | Archive HERF Cannon | -6/Zion | Archive Assault Drone Bay | -4/Zhirov | Free Exp. Heat Sink | -4/Zhirov | Free Exp. Optical Array | -4/Zhirov | Free Imp. Arc Thrower | -4/Zhirov | Free Nanoactuators | -3/Testing | Hacked Cld. Phase Cannon | -3/Testing | Archive Enh. Biometal Leg | -3/Testing | Archive Quantum Shading Machine | -3/Testing | Archive Com. Particle Reactor | -3/Testing | Archive Exp. Thermal Defense Suite | -3/Testing | Archive Exp. Targeting Computer | -3/Testing | Archive Adv. Myomer Leg | -3/Testing | Archive Adv. Gravity Neutralizer | -3/Testing | Archive Exp. Signal Interpreter | -2/Quarantine | Archive Prc. Matter Filter | -2/Quarantine | Archive Lrn. Phase Cannon | -2/Quarantine | Archive Adv. KE Penetrator | -2/Quarantine | Archive Point Singularity Launcher | -2/Quarantine | Archive Com. Mass Driver | -2/Quarantine | Archive Exp. Biometal Heavy Treads | -2/Quarantine | Archive Coolant Network | -2/Quarantine | Archive Adv. Thermal Defense Suite | -2/Quarantine | Archive Electron Diverter | -2/Quarantine | Archive Centrium Light Armor Plating | -2/Quarantine | Archive Stealth Drone Bay | -2/Quarantine | Archive Adv. Remote Shield | -2/Quarantine | Archive Exp. Core Analyzer | -2/Quarantine | Archive Cld. Antigrav System | -2/Quarantine | Archive Hvy. Tesla Rifle | -2/Quarantine | Archive Helical Railgun | -2/Quarantine | Archive Exp. Coolant Injector | -2/Quarantine | Archive Thermal Barrier | -2/Quarantine | Archive Exp. Flexi-carbon Leg | -2/Protoforge | Archive Plasma Lance | -2/Protoforge | Archive Adv. Dynamic Insulation System | -2/Protoforge | Archive Gravity Neutralizer | -2/Protoforge | Archive Exp. Biometal Leg | -2/Protoforge | Archive Adv. Kinecellerator | -2/Protoforge | Archive Imp. Matter Compressor | -2/Protoforge | Archive Hds. Centrium Heavy Treads | -2/Protoforge | Archive Exp. Q-thruster | -2/Protoforge | Archive Cld. Field Propulsion Drive | -2/Protoforge | Archive Gravity Flail | -2/Protoforge | Archive Exp. Biometal Medium Treads | -2/Protoforge | Archive Robot Schematics ------------------ A-02 Transporter | -6/Zion | Archive S-27 Virus | -6/Zion | Archive T-07 Excavator | -6/Zion | Archive C-65 Expert | -2/Quarantine | Archive C-55 Analyst | -2/Quarantine | Archive K-01 Serf | -2/Quarantine | Archive R-10 Processor | -2/Quarantine | Archive Y-72 Warden | -2/Quarantine | Archive E-15 Imp | -2/Protoforge | Archive A-27 Freighter | -2/Protoforge | Archive Fabricated ------------ Imp. Propulsion Shielding | x2 | -6/Factory Imp. Propulsion Shielding | x2 | -6/Factory Electron Diverter | x1 | -2/Protoforge Electron Diverter | x1 | -2/Protoforge Electron Diverter | x1 | -2/Protoforge Electron Diverter | x1 | -2/Protoforge Repaired ---------- Imp. Propulsion Shielding | 2% | -5/Factory Exp. Utility Shielding | 31% | -2/Research Electron Diverter | 16% | -2/Protoforge | Broken Studied --------- Nuclear Pulse Array | -5/Factory | Hacked Field Propulsion Array | -4/Factory | Hacked Adv. Surge Thruster | -2/Quarantine | Hacked Lgt. Ion Engine | -2/Quarantine | Hacked Impulse Thruster Array | -1/Access | Hacked Alien Tech Used ----------------- Core Expander Integrated Reactor Subatomic Replicator Sigix Broadsword Transdimensional Reconstructor Achievements -------------- Gladiator Challenges ------------ None Game ------ Seed PiercelightInsulatedSlayer Manual? 0 Play Time 05:32:33 Cumulative 1037.5 hours Start 2025.11.15 @ 16:27:39 End 2025.11.15 @ 22:52:25 Sessions 1 Manual Loads 0 Difficulty Rogue Special Mode None Game No. 319 Rogue 317 Adventurer 2 Explorer 0 Win Type - Total 73 Types 20/18/16/1/1/1/12/1/1/2 Lore% 97 Gallery% 95 Achievement% 83 Wizard Run 0 Options --------- Layout 0 ASCII 0 Keyboard 1 Movement Numpad Keybinds 0 Fullscreen 1 Font 24/Smallcaps Map View 76x50 Zoom Use 0% Tactical HUD 1 Map Filters NONE Filters NONE Steam 1 RUN: 29afa9c8-e31f-49f9-8a05-1fb3f7bd8198